Workbook

Sheet Sheet1
A1: gene | B1: group | C1: Replicate # | D1: Threshold Cycle (Ct) | E1: Ct Mean | F1: Ct Std. Dev | H1: gene | I1: group | J1: Replicate # | K1: Threshold Cycle (Ct) | L1: Ct Mean | M1: Ct Std. Dev | O1: ΔCt | P1: STDDEV | R1: ΔΔCT (Target-Aveg Control) | S1: 2^-ΔΔCt | U1: Low | V1: HIGH | W1: Error- | X1: Error+
A2: α-SMA | B2: NC1 | C2: 1 | D2: 27.483805 | H2: GAPDH | I2: NC1 | J2: 1 | K2: 22.733053
A3: α-SMA | B3: NC1 | C3: 2 | D3: 27.397999 | H3: GAPDH | I3: NC1 | J3: 2 | K3: 22.525488
A4: α-SMA | B4: NC1 | C4: 3 | D4: 27.623587 | E4: =AVERAGE(D2:D4,D11:D13) -> 27.13168667 | F4: =STDEV(D2:D4,D11:D13) -> 0.4228578652 | H4: GAPDH | I4: NC1 | J4: 3 | K4: 22.726229 | L4: =AVERAGE(K2:K4,K11:K13) -> 22.05305033 | M4: =STDEV(K2:K4,K11:K13) -> 0.68086099 | O4: =E4-L4 -> 5.078636333 | P4: =SQRT(F4^2+M4^2) -> 0.8014864078 | R4: =O4-O4 -> 0 | S4: =2^-R4 -> 1 | U4: =2^-(R4+P4) -> 0.5737577306 | V4: =2^-(R4-P4) -> 1.742895906 | W4: =S4-U4 -> 0.4262422694 | X4: =V4-S4 -> 0.7428959065
A5: Col1a1 | B5: NC1 | C5: 1 | D5: 28.574984 | H5: GAPDH | I5: NC1 | J5: 1 | K5: 22.733053
A6: Col1a1 | B6: NC1 | C6: 2 | D6: 28.394283 | H6: GAPDH | I6: NC1 | J6: 2 | K6: 22.525488
A7: Col1a1 | B7: NC1 | C7: 3 | D7: 28.613453 | E7: =AVERAGE(D5:D7,D14:D16) -> 28.82134167 | F7: =STDEV(D5:D7,D14:D16) -> 0.3329717247 | H7: GAPDH | I7: NC1 | J7: 3 | K7: 22.726229 | L7: =AVERAGE(K5:K7,K14:K16) -> 22.05305033 | M7: =STDEV(K5:K7,K14:K16) -> 0.68086099 | O7: =E7-L7 -> 6.768291333 | P7: =SQRT(F7^2+M7^2) -> 0.7579194266 | R7: =O7-O7 -> 0 | S7: =2^-R7 -> 1 | U7: =2^-(R7+P7) -> 0.5913485256 | V7: =2^-(R7-P7) -> 1.691050128 | W7: =S7-U7 -> 0.4086514744 | X7: =V7-S7 -> 0.6910501283
A8: mmu_circ_0001283 | B8: NC1 | C8: 1 | D8: 33.015587 | H8: GAPDH | I8: NC1 | J8: 1 | K8: 22.733053
A9: mmu_circ_0001283 | B9: NC1 | C9: 2 | D9: 32.298866 | H9: GAPDH | I9: NC1 | J9: 2 | K9: 22.525488
A10: mmu_circ_0001283 | B10: NC1 | C10: 3 | D10: 33.877888 | E10: =AVERAGE(D8:D10,D17:D19) -> 33.3625658 | F10: =STDEV(D8:D10,D17:D19) -> 0.7045374566 | H10: GAPDH | I10: NC1 | J10: 3 | K10: 22.726229 | L10: =AVERAGE(K8:K10,K17:K19) -> 22.05305033 | M10: =STDEV(K8:K10,K17:K19) -> 0.68086099 | O10: =E10-L10 -> 11.30951547 | P10: =SQRT(F10^2+M10^2) -> 0.9797676845 | R10: =O10-O10 -> 0 | S10: =2^-R10 -> 1 | U10: =2^-(R10+P10) -> 0.5070613848 | V10: =2^-(R10-P10) -> 1.972147811 | W10: =S10-U10 -> 0.4929386152 | X10: =V10-S10 -> 0.9721478107
A11: α-SMA | B11: NC2 | C11: 1 | D11: 26.662832 | H11: GAPDH | I11: NC2 | J11: 1 | K11: 21.652115
A12: α-SMA | B12: NC2 | C12: 2 | D12: 26.685255 | H12: GAPDH | I12: NC2 | J12: 2 | K12: 21.382404
A13: α-SMA | B13: NC2 | C13: 3 | D13: 26.936642 | H13: GAPDH | I13: NC2 | J13: 3 | K13: 21.299013
A14: Col1a1 | B14: NC2 | C14: 1 | D14: 29.153925 | H14: GAPDH | I14: NC2 | J14: 1 | K14: 21.652115
A15: Col1a1 | B15: NC2 | C15: 2 | D15: 29.15445 | H15: GAPDH | I15: NC2 | J15: 2 | K15: 21.382404
A16: Col1a1 | B16: NC2 | C16: 3 | D16: 29.036955 | H16: GAPDH | I16: NC2 | J16: 3 | K16: 21.299013
A17: mmu_circ_0001283 | B17: NC2 | C17: 1 | D17: 33.993618 | H17: GAPDH | I17: NC2 | J17: 1 | K17: 21.652115
A18: mmu_circ_0001283 | B18: NC2 | C18: 2 | H18: GAPDH | I18: NC2 | J18: 2 | K18: 21.382404
A19: mmu_circ_0001283 | B19: NC2 | C19: 3 | D19: 33.62687 | H19: GAPDH | I19: NC2 | J19: 3 | K19: 21.299013
A20: α-SMA | B20: DMN1 | C20: 1 | D20: 27.004333 | H20: GAPDH | I20: DMN1 | J20: 1 | K20: 24.99086
A21: α-SMA | B21: DMN1 | C21: 2 | D21: 26.981478 | H21: GAPDH | I21: DMN1 | J21: 2 | K21: 24.47882
A22: α-SMA | B22: DMN1 | C22: 3 | D22: 27.380234 | E22: =AVERAGE(D20:D22) -> 27.122015 | F22: =STDEV(D20:D22) -> 0.2239160037 | H22: GAPDH | I22: DMN1 | J22: 3 | K22: 24.490103 | L22: =AVERAGE(K20:K22) -> 24.653261 | M22: =STDEV(K20:K22) -> 0.2924237339 | O22: =E22-L22 -> 2.468754 | P22: =SQRT(F22^2+M22^2) -> 0.3683069601 | R22: =O22-O4 -> -2.609882333 | S22: =2^-R22 -> 6.104538927 | U22: =2^-(R22+P22) -> 4.729131876 | V22: =2^-(R22-P22) -> 7.879965391 | W22: =S22-U22 -> 1.375407051 | X22: =V22-S22 -> 1.775426464
A23: Col1a1 | B23: DMN1 | C23: 1 | D23: 30.111769 | H23: GAPDH | I23: DMN1 | J23: 1 | K23: 24.99086
A24: Col1a1 | B24: DMN1 | C24: 2 | D24: 29.91383 | H24: GAPDH | I24: DMN1 | J24: 2 | K24: 24.47882
A25: Col1a1 | B25: DMN1 | C25: 3 | D25: 29.562529 | E25: =AVERAGE(D23:D25) -> 29.86270933 | F25: =STDEV(D23:D25) -> 0.2781656634 | H25: GAPDH | I25: DMN1 | J25: 3 | K25: 24.490103 | L25: =AVERAGE(K23:K25) -> 24.653261 | M25: =STDEV(K23:K25) -> 0.2924237339 | O25: =E25-L25 -> 5.209448333 | P25: =SQRT(F25^2+M25^2) -> 0.4035935783 | R25: =O25-O7 -> -1.558843 | S25: =2^-R25 -> 2.946174739 | U25: =2^-(R25+P25) -> 2.22722826 | V25: =2^-(R25-P25) -> 3.897196238 | W25: =S25-U25 -> 0.7189464797 | X25: =V25-S25 -> 0.9510214987
A26: mmu_circ_0001283 | B26: DMN1 | C26: 1 | H26: GAPDH | I26: DMN1 | J26: 1 | K26: 24.99086
A27: mmu_circ_0001283 | B27: DMN1 | C27: 2 | D27: 31.799007 | H27: GAPDH | I27: DMN1 | J27: 2 | K27: 24.47882
A28: mmu_circ_0001283 | B28: DMN1 | C28: 3 | D28: 31.99162 | E28: =AVERAGE(D26:D28) -> 31.8953135 | F28: =STDEV(D26:D28) -> 0.1361979584 | H28: GAPDH | I28: DMN1 | J28: 3 | K28: 24.490103 | L28: =AVERAGE(K26:K28) -> 24.653261 | M28: =STDEV(K26:K28) -> 0.2924237339 | O28: =E28-L28 -> 7.2420525 | P28: =SQRT(F28^2+M28^2) -> 0.3225856848 | R28: =O28-O10 -> -4.067462967 | S28: =2^-R28 -> 16.76595743 | U28: =2^-(R28+P28) -> 13.40665371 | V28: =2^-(R28-P28) -> 20.96700151 | W28: =S28-U28 -> 3.35930372 | X28: =V28-S28 -> 4.201044078
A29: α-SMA | B29: DMN2 | C29: 1 | D29: 26.010323 | H29: GAPDH | I29: DMN2 | J29: 1 | K29: 22.501625
A30: α-SMA | B30: DMN2 | C30: 2 | D30: 26.093903 | H30: GAPDH | I30: DMN2 | J30: 2 | K30: 22.419115
A31: α-SMA | B31: DMN2 | C31: 3 | D31: 26.326717 | E31: =AVERAGE(D29:D31) -> 26.14364767 | F31: =STDEV(D29:D31) -> 0.16395789 | H31: GAPDH | I31: DMN2 | J31: 3 | K31: 22.31525 | L31: =AVERAGE(K29:K31) -> 22.41199667 | M31: =STDEV(K29:K31) -> 0.09339118352 | O31: =E31-L31 -> 3.731651 | P31: =SQRT(F31^2+M31^2) -> 0.1886904949 | R31: =O31-O4 -> -1.346985333 | S31: =2^-R31 -> 2.543800153 | U31: =2^-(R31+P31) -> 2.231934731 | V31: =2^-(R31-P31) -> 2.899242136 | W31: =S31-U31 -> 0.3118654221 | X31: =V31-S31 -> 0.3554419838
A32: Col1a1 | B32: DMN2 | C32: 1 | D32: 28.60999 | H32: GAPDH | I32: DMN2 | J32: 1 | K32: 22.501625
A33: Col1a1 | B33: DMN2 | C33: 2 | D33: 28.743032 | H33: GAPDH | I33: DMN2 | J33: 2 | K33: 22.419115
A34: Col1a1 | B34: DMN2 | C34: 3 | D34: 28.152206 | E34: =AVERAGE(D32:D34) -> 28.50174267 | F34: =STDEV(D32:D34) -> 0.3099305639 | H34: GAPDH | I34: DMN2 | J34: 3 | K34: 22.31525 | L34: =AVERAGE(K32:K34) -> 22.41199667 | M34: =STDEV(K32:K34) -> 0.09339118352 | O34: =E34-L34 -> 6.089746 | P34: =SQRT(F34^2+M34^2) -> 0.3236956404 | R34: =O34-O7 -> -0.6785453333 | S34: =2^-R34 -> 1.600525135 | U34: =2^-(R34+P34) -> 1.278852337 | V34: =2^-(R34-P34) -> 2.003109063 | W34: =S34-U34 -> 0.3216727976 | X34: =V34-S34 -> 0.4025839284
A35: mmu_circ_0001283 | B35: DMN2 | C35: 1 | D35: 31.967993 | H35: GAPDH | I35: DMN2 | J35: 1 | K35: 22.501625
A36: mmu_circ_0001283 | B36: DMN2 | C36: 2 | D36: 32.66122 | H36: GAPDH | I36: DMN2 | J36: 2 | K36: 22.419115
A37: mmu_circ_0001283 | B37: DMN2 | C37: 3 | D37: 32.46926 | E37: =AVERAGE(D35:D37) -> 32.36615767 | F37: =STDEV(D35:D37) -> 0.3579294438 | H37: GAPDH | I37: DMN2 | J37: 3 | K37: 22.31525 | L37: =AVERAGE(K35:K37) -> 22.41199667 | M37: =STDEV(K35:K37) -> 0.09339118352 | O37: =E37-L37 -> 9.954161 | P37: =SQRT(F37^2+M37^2) -> 0.3699126923 | R37: =O37-O10 -> -1.355354467 | S37: =2^-R37 -> 2.558599727 | U37: =2^-(R37+P37) -> 1.9799195 | V37: =2^-(R37-P37) -> 3.306413499 | W37: =S37-U37 -> 0.5786802266 | X37: =V37-S37 -> 0.747813772
A38: α-SMA | B38: DMN3 | C38: 1 | D38: 26.804567 | H38: GAPDH | I38: DMN3 | J38: 1 | K38: 21.22058
A39: α-SMA | B39: DMN3 | C39: 2 | D39: 26.796227 | H39: GAPDH | I39: DMN3 | J39: 2 | K39: 21.295992
A40: α-SMA | B40: DMN3 | C40: 3 | D40: 26.875038 | E40: =AVERAGE(D38:D40) -> 26.82527733 | F40: =STDEV(D38:D40) -> 0.04329528681 | H40: GAPDH | I40: DMN3 | J40: 3 | K40: 21.453514 | L40: =AVERAGE(K38:K40) -> 21.323362 | M40: =STDEV(K38:K40) -> 0.1188545319 | O40: =E40-L40 -> 5.501915333 | P40: =SQRT(F40^2+M40^2) -> 0.1264945913 | R40: =O40-O4 -> 0.423279 | S40: =2^-R40 -> 0.7457277845 | U40: =2^-(R40+P40) -> 0.6831273263 | V40: =2^-(R40-P40) -> 0.814064827 | W40: =S40-U40 -> 0.06260045829 | X40: =V40-S40 -> 0.06833704242
A41: Col1a1 | B41: DMN3 | C41: 1 | D41: 27.963875 | H41: GAPDH | I41: DMN3 | J41: 1 | K41: 21.22058
A42: Col1a1 | B42: DMN3 | C42: 2 | D42: 27.604815 | H42: GAPDH | I42: DMN3 | J42: 2 | K42: 21.295992
A43: Col1a1 | B43: DMN3 | C43: 3 | D43: 27.317768 | E43: =AVERAGE(D41:D43) -> 27.62881933 | F43: =STDEV(D41:D43) -> 0.3237216704 | H43: GAPDH | I43: DMN3 | J43: 3 | K43: 21.453514 | L43: =AVERAGE(K41:K43) -> 21.323362 | M43: =STDEV(K41:K43) -> 0.1188545319 | O43: =E43-L43 -> 6.305457333 | P43: =SQRT(F43^2+M43^2) -> 0.3448508658 | R43: =O43-O7 -> -0.462834 | S43: =2^-R43 -> 1.378246559 | U43: =2^-(R43+P43) -> 1.085216685 | V43: =2^-(R43-P43) -> 1.75040027 | W43: =S43-U43 -> 0.2930298743 | X43: =V43-S43 -> 0.3721537106
A44: mmu_circ_0001283 | B44: DMN3 | C44: 1 | D44: 33.181965 | H44: GAPDH | I44: DMN3 | J44: 1 | K44: 21.22058
A45: mmu_circ_0001283 | B45: DMN3 | C45: 2 | D45: 32.58388 | H45: GAPDH | I45: DMN3 | J45: 2 | K45: 21.295992
A46: mmu_circ_0001283 | B46: DMN3 | C46: 3 | D46: 32.375546 | E46: =AVERAGE(D44:D46) -> 32.713797 | F46: =STDEV(D44:D46) -> 0.4186128534 | H46: GAPDH | I46: DMN3 | J46: 3 | K46: 21.453514 | L46: =AVERAGE(K44:K46) -> 21.323362 | M46: =STDEV(K44:K46) -> 0.1188545319 | O46: =E46-L46 -> 11.390435 | P46: =SQRT(F46^2+M46^2) -> 0.4351587306 | R46: =O46-O10 -> 0.08091953333 | S46: =2^-R46 -> 0.9454548483 | U46: =2^-(R46+P46) -> 0.699270106 | V46: =2^-(R46-P46) -> 1.278311288 | W46: =S46-U46 -> 0.2461847422 | X46: =V46-S46 -> 0.33285644
A47: α-SMA | B47: DMN4 | C47: 1 | D47: 27.089327 | H47: GAPDH | I47: DMN4 | J47: 1 | K47: 21.48063
A48: α-SMA | B48: DMN4 | C48: 2 | D48: 27.21829 | H48: GAPDH | I48: DMN4 | J48: 2 | K48: 21.61652
A49: α-SMA | B49: DMN4 | C49: 3 | D49: 27.06543 | E49: =AVERAGE(D47:D49) -> 27.124349 | F49: =STDEV(D47:D49) -> 0.08222803818 | H49: GAPDH | I49: DMN4 | J49: 3 | K49: 21.595453 | L49: =AVERAGE(K47:K49) -> 21.564201 | M49: =STDEV(K47:K49) -> 0.07313712226 | O49: =E49-L49 -> 5.560148 | P49: =SQRT(F49^2+M49^2) -> 0.1100476666 | R49: =O49-O4 -> 0.4815116667 | S49: =2^-R49 -> 0.7162267629 | U49: =2^-(R49+P49) -> 0.6636252416 | V49: =2^-(R49-P49) -> 0.7729976857 | W49: =S49-U49 -> 0.0526015213 | X49: =V49-S49 -> 0.05677092274
A50: Col1a1 | B50: DMN4 | C50: 1 | D50: 27.637545 | H50: GAPDH | I50: DMN4 | J50: 1 | K50: 21.48063
A51: Col1a1 | B51: DMN4 | C51: 2 | D51: 27.6648 | H51: GAPDH | I51: DMN4 | J51: 2 | K51: 21.61652
A52: Col1a1 | B52: DMN4 | C52: 3 | D52: 27.403503 | E52: =AVERAGE(D50:D52) -> 27.568616 | F52: =STDEV(D50:D52) -> 0.1436399521 | H52: GAPDH | I52: DMN4 | J52: 3 | K52: 21.595453 | L52: =AVERAGE(K50:K52) -> 21.564201 | M52: =STDEV(K50:K52) -> 0.07313712226 | O52: =E52-L52 -> 6.004415 | P52: =SQRT(F52^2+M52^2) -> 0.1611876995 | R52: =O52-O7 -> -0.7638763333 | S52: =2^-R52 -> 1.698046931 | U52: =2^-(R52+P52) -> 1.518543918 | V52: =2^-(R52-P52) -> 1.898768515 | W52: =S52-U52 -> 0.1795030131 | X52: =V52-S52 -> 0.2007215839
A53: mmu_circ_0001283 | B53: DMN4 | C53: 1 | D53: 32.960598 | H53: GAPDH | I53: DMN4 | J53: 1 | K53: 21.48063
A54: mmu_circ_0001283 | B54: DMN4 | C54: 2 | D54: 32.70367 | H54: GAPDH | I54: DMN4 | J54: 2 | K54: 21.61652
A55: mmu_circ_0001283 | B55: DMN4 | C55: 3 | D55: 32.02279 | E55: =AVERAGE(D53:D55) -> 32.56235267 | F55: =STDEV(D53:D55) -> 0.4846121158 | H55: GAPDH | I55: DMN4 | J55: 3 | K55: 21.595453 | L55: =AVERAGE(K53:K55) -> 21.564201 | M55: =STDEV(K53:K55) -> 0.07313712226 | O55: =E55-L55 -> 10.99815167 | P55: =SQRT(F55^2+M55^2) -> 0.49009993 | R55: =O55-O10 -> -0.3113638 | S55: =2^-R55 -> 1.240880167 | U55: =2^-(R55+P55) -> 0.8834766252 | V55: =2^-(R55-P55) -> 1.74286851 | W55: =S55-U55 -> 0.357403542 | X55: =V55-S55 -> 0.5019883427
A56: α-SMA | B56: DMN5 | C56: 1 | D56: 27.495117 | H56: GAPDH | I56: DMN5 | J56: 1 | K56: 24.21825
A57: α-SMA | B57: DMN5 | C57: 2 | D57: 27.483805 | H57: GAPDH | I57: DMN5 | J57: 2 | K57: 24.21609
A58: α-SMA | B58: DMN5 | C58: 3 | D58: 29.602362 | E58: =AVERAGE(D56:D58) -> 28.19376133 | F58: =STDEV(D56:D58) -> 1.219897073 | H58: GAPDH | I58: DMN5 | J58: 3 | K58: 24.196302 | L58: =AVERAGE(K56:K58) -> 24.210214 | M58: =STDEV(K56:K58) -> 0.01209645436 | O58: =E58-L58 -> 3.983547333 | P58: =SQRT(F58^2+M58^2) -> 1.219957046 | R58: =O58-O4 -> -1.095089 | S58: =2^-R58 -> 2.136262598 | U58: =2^-(R58+P58) -> 0.9170879197 | V58: =2^-(R58-P58) -> 4.976205433 | W58: =S58-U58 -> 1.219174679 | X58: =V58-S58 -> 2.839942835
A59: Col1a1 | B59: DMN5 | C59: 1 | D59: 29.696022 | H59: GAPDH | I59: DMN5 | J59: 1 | K59: 24.21825
A60: Col1a1 | B60: DMN5 | C60: 2 | D60: 29.323929 | H60: GAPDH | I60: DMN5 | J60: 2 | K60: 24.21609
A61: Col1a1 | B61: DMN5 | C61: 3 | D61: 27.500366 | E61: =AVERAGE(D59:D61) -> 28.84010567 | F61: =STDEV(D59:D61) -> 1.175070245 | H61: GAPDH | I61: DMN5 | J61: 3 | K61: 24.196302 | L61: =AVERAGE(K59:K61) -> 24.210214 | M61: =STDEV(K59:K61) -> 0.01209645436 | O61: =E61-L61 -> 4.629891667 | P61: =SQRT(F61^2+M61^2) -> 1.175132505 | R61: =O61-O7 -> -2.138399667 | S61: =2^-R61 -> 4.402733948 | U61: =2^-(R61+P61) -> 1.949720282 | V61: =2^-(R61-P61) -> 9.941972909 | W61: =S61-U61 -> 2.453013667 | X61: =V61-S61 -> 5.539238961
A62: mmu_circ_0001283 | B62: DMN5 | C62: 1 | D62: 32.153862 | H62: GAPDH | I62: DMN5 | J62: 1 | K62: 24.21825
A63: mmu_circ_0001283 | B63: DMN5 | C63: 2 | D63: 31.52857 | H63: GAPDH | I63: DMN5 | J63: 2 | K63: 24.21609
A64: mmu_circ_0001283 | B64: DMN5 | C64: 3 | D64: 32.675686 | E64: =AVERAGE(D62:D64) -> 32.11937267 | F64: =STDEV(D62:D64) -> 0.5743351939 | H64: GAPDH | I64: DMN5 | J64: 3 | K64: 24.196302 | L64: =AVERAGE(K62:K64) -> 24.210214 | M64: =STDEV(K62:K64) -> 0.01209645436 | O64: =E64-L64 -> 7.909158667 | P64: =SQRT(F64^2+M64^2) -> 0.5744625655 | R64: =O64-O10 -> -3.4003568 | S64: =2^-R64 -> 10.55867428 | U64: =2^-(R64+P64) -> 7.09053376 | V64: =2^-(R64-P64) -> 15.72316081 | W64: =S64-U64 -> 3.468140521 | X64: =V64-S64 -> 5.164486534
A65: α-SMA | B65: DMN6 | C65: 1 | D65: 26.461262 | H65: GAPDH | I65: DMN6 | J65: 1 | K65: 23.143005
A66: α-SMA | B66: DMN6 | C66: 2 | D66: 26.495409 | H66: GAPDH | I66: DMN6 | J66: 2 | K66: 23.237398
A67: α-SMA | B67: DMN6 | C67: 3 | D67: 26.508913 | E67: =AVERAGE(D65:D67) -> 26.488528 | F67: =STDEV(D65:D67) -> 0.02455942937 | H67: GAPDH | I67: DMN6 | J67: 3 | K67: 23.144028 | L67: =AVERAGE(K65:K67) -> 23.17481033 | M67: =STDEV(K65:K67) -> 0.05420492271 | O67: =E67-L67 -> 3.313717667 | P67: =SQRT(F67^2+M67^2) -> 0.05950915238 | R67: =O67-O4 -> -1.764918667 | S67: =2^-R67 -> 3.398548395 | U67: =2^-(R67+P67) -> 3.261214906 | V67: =2^-(R67-P67) -> 3.541665154 | W67: =S67-U67 -> 0.1373334886 | X67: =V67-S67 -> 0.1431167589
A68: Col1a1 | B68: DMN6 | C68: 1 | D68: 29.052309 | H68: GAPDH | I68: DMN6 | J68: 1 | K68: 23.143005
A69: Col1a1 | B69: DMN6 | C69: 2 | D69: 29.101728 | H69: GAPDH | I69: DMN6 | J69: 2 | K69: 23.237398
A70: Col1a1 | B70: DMN6 | C70: 3 | D70: 28.775341 | E70: =AVERAGE(D68:D70) -> 28.97645933 | F70: =STDEV(D68:D70) -> 0.1759175869 | H70: GAPDH | I70: DMN6 | J70: 3 | K70: 23.144028 | L70: =AVERAGE(K68:K70) -> 23.17481033 | M70: =STDEV(K68:K70) -> 0.05420492271 | O70: =E70-L70 -> 5.801649 | P70: =SQRT(F70^2+M70^2) -> 0.1840792521 | R70: =O70-O7 -> -0.9666423333 | S70: =2^-R70 -> 1.954286974 | U70: =2^-(R70+P70) -> 1.720184226 | V70: =2^-(R70-P70) -> 2.220249157 | W70: =S70-U70 -> 0.2341027482 | X70: =V70-S70 -> 0.2659621827
A71: mmu_circ_0001283 | B71: DMN6 | C71: 1 | D71: 33.705124 | H71: GAPDH | I71: DMN6 | J71: 1 | K71: 23.143005
A72: mmu_circ_0001283 | B72: DMN6 | C72: 2 | D72: 32.9746 | H72: GAPDH | I72: DMN6 | J72: 2 | K72: 23.237398
A73: mmu_circ_0001283 | B73: DMN6 | C73: 3 | D73: 31.819897 | E73: =AVERAGE(D71:D73) -> 32.833207 | F73: =STDEV(D71:D73) -> 0.9505336373 | H73: GAPDH | I73: DMN6 | J73: 3 | K73: 23.144028 | L73: =AVERAGE(K71:K73) -> 23.17481033 | M73: =STDEV(K71:K73) -> 0.05420492271 | O73: =E73-L73 -> 9.658396667 | P73: =SQRT(F73^2+M73^2) -> 0.9520779219 | R73: =O73-O10 -> -1.6511188 | S73: =2^-R73 -> 3.140771094 | U73: =2^-(R73+P73) -> 1.62342516 | V73: =2^-(R73-P73) -> 6.076315252 | W73: =S73-U73 -> 1.517345933 | X73: =V73-S73 -> 2.935544159
B76: Statistical analysis:t tests | C76: T-Test：
B78: p value(HF vs NC) | C78: α-SMA | D78: 0.0073
C79: Col1a1 | D79: 0.0127
C80: mmu_circ_0001283 | D80: 0.0194
V167: Automatic Ct | X167: Automatic
V168: Automatic Ct | X168: Automatic
V169: Automatic Ct | X169: Automatic
V170: Automatic Ct | X170: Automatic
V171: Automatic Ct | X171: Automatic
V173: Automatic Ct | X173: Automatic
V174: Automatic Ct | X174: Automatic
V175: Automatic Ct | X175: Automatic
V176: Automatic Ct | X176: Automatic
V178: Automatic Ct | X178: Automatic
V179: Automatic Ct | X179: Automatic
V180: Automatic Ct | X180: Automatic
V182: Automatic Ct | X182: Automatic
V183: Automatic Ct | X183: Automatic
V184: Automatic Ct | X184: Automatic
V185: Automatic Ct | X185: Automatic
V186: Automatic Ct | X186: Automatic
V187: Automatic Ct | X187: Automatic

Sheet Sheet2
A1: gene | B1: group | C1: Replicate # | D1: Threshold Cycle (Ct) | E1: Ct Mean | F1: Ct Std. Dev | H1: gene | I1: group | J1: Replicate # | K1: Threshold Cycle (Ct) | L1: Ct Mean | M1: Ct Std. Dev | O1: ΔCt | P1: STDDEV | R1: ΔΔCT (Target-Aveg Control) | S1: 2^-ΔΔCt | U1: Low | V1: HIGH | W1: Error- | X1: Error+
A2: α-SMA | B2: NC3 | C2: 1 | D2: 27.241953 | H2: GAPDH | I2: NC3 | J2: 1 | K2: 22.371342
A3: α-SMA | B3: NC3 | C3: 2 | D3: 27.273804 | H3: GAPDH | I3: NC3 | J3: 2 | K3: 22.21146
A4: α-SMA | B4: NC3 | C4: 3 | D4: 27.477707 | E4: =AVERAGE(D2:D4,D11:D13) -> 27.1555735 | F4: =STDEV(D2:D4,D11:D13) -> 0.211110865 | H4: GAPDH | I4: NC3 | J4: 3 | K4: 22.186947 | L4: =AVERAGE(K2:K4,K11:K13) -> 22.035223 | M4: =STDEV(K2:K4,K11:K13) -> 0.2527503322 | O4: =E4-L4 -> 5.1203505 | P4: =SQRT(F4^2+M4^2) -> 0.3293182773 | R4: =O4-O4 -> 0 | S4: =2^-R4 -> 1 | U4: =2^-(R4+P4) -> 0.7959124908 | V4: =2^-(R4-P4) -> 1.256419533 | W4: =S4-U4 -> 0.2040875092 | X4: =V4-S4 -> 0.2564195331
A5: Col1a1 | B5: NC3 | C5: 1 | D5: 29.366478 | H5: GAPDH | I5: NC3 | J5: 1 | K5: 22.371342
A6: Col1a1 | B6: NC3 | C6: 2 | D6: 29.18185 | H6: GAPDH | I6: NC3 | J6: 2 | K6: 22.21146
A7: Col1a1 | B7: NC3 | C7: 3 | D7: 28.994858 | E7: =AVERAGE(D5:D7,D14:D16) -> 29.07035633 | F7: =STDEV(D5:D7,D14:D16) -> 0.1912457854 | H7: GAPDH | I7: NC3 | J7: 3 | K7: 22.186947 | L7: =AVERAGE(K5:K7,K14:K16) -> 22.035223 | M7: =STDEV(K5:K7,K14:K16) -> 0.2527503322 | O7: =E7-L7 -> 7.035133333 | P7: =SQRT(F7^2+M7^2) -> 0.3169505968 | R7: =O7-O7 -> 0 | S7: =2^-R7 -> 1 | U7: =2^-(R7+P7) -> 0.8027648779 | V7: =2^-(R7-P7) -> 1.245694758 | W7: =S7-U7 -> 0.1972351221 | X7: =V7-S7 -> 0.2456947577
A8: mmu_circ_0001283 | B8: NC3 | C8: 1 | D8: 33.293545 | H8: GAPDH | I8: NC3 | J8: 1 | K8: 22.371342
A9: mmu_circ_0001283 | B9: NC3 | C9: 2 | D9: 32.948635 | H9: GAPDH | I9: NC3 | J9: 2 | K9: 22.21146
A10: mmu_circ_0001283 | B10: NC3 | C10: 3 | D10: 33.3487 | E10: =AVERAGE(D8:D10,D17:D19) -> 33.1390455 | F10: =STDEV(D8:D10,D17:D19) -> 0.3789836783 | H10: GAPDH | I10: NC3 | J10: 3 | K10: 22.186947 | L10: =AVERAGE(K8:K10,K17:K19) -> 22.035223 | M10: =STDEV(K8:K10,K17:K19) -> 0.2527503322 | O10: =E10-L10 -> 11.1038225 | P10: =SQRT(F10^2+M10^2) -> 0.4555341467 | R10: =O10-O10 -> 0 | S10: =2^-R10 -> 1 | U10: =2^-(R10+P10) -> 0.7292401266 | V10: =2^-(R10-P10) -> 1.371290421 | W10: =S10-U10 -> 0.2707598734 | X10: =V10-S10 -> 0.3712904207
A11: α-SMA | B11: NC4 | C11: 1 | D11: 26.925339 | H11: GAPDH | I11: NC4 | J11: 1 | K11: 21.873348
A12: α-SMA | B12: NC4 | C12: 2 | D12: 26.98912 | H12: GAPDH | I12: NC4 | J12: 2 | K12: 21.779142
A13: α-SMA | B13: NC4 | C13: 3 | D13: 27.025518 | H13: GAPDH | I13: NC4 | J13: 3 | K13: 21.789099
A14: Col1a1 | B14: NC4 | C14: 1 | D14: 29.123499 | H14: GAPDH | I14: NC4 | J14: 1 | K14: 21.873348
A15: Col1a1 | B15: NC4 | C15: 2 | D15: 28.880827 | H15: GAPDH | I15: NC4 | J15: 2 | K15: 21.779142
A16: Col1a1 | B16: NC4 | C16: 3 | D16: 28.874626 | H16: GAPDH | I16: NC4 | J16: 3 | K16: 21.789099
A17: mmu_circ_0001283 | B17: NC4 | C17: 1 | D17: 32.455013 | H17: GAPDH | I17: NC4 | J17: 1 | K17: 21.873348
A18: mmu_circ_0001283 | B18: NC4 | C18: 2 | D18: 33.483532 | H18: GAPDH | I18: NC4 | J18: 2 | K18: 21.779142
A19: mmu_circ_0001283 | B19: NC4 | C19: 3 | D19: 33.304848 | H19: GAPDH | I19: NC4 | J19: 3 | K19: 21.789099
A20: α-SMA | B20: NC4 | C20: 1 | D20: 27.394548 | H20: GAPDH | I20: NC4 | J20: 1 | K20: 24.99107
A21: α-SMA | B21: DMN7 | C21: 2 | D21: 27.321491 | H21: GAPDH | I21: DMN7 | J21: 2 | K21: 24.938972
A22: α-SMA | B22: DMN7 | C22: 3 | D22: 27.359901 | E22: =AVERAGE(D20:D22) -> 27.35864667 | F22: =STDEV(D20:D22) -> 0.0365446484 | H22: GAPDH | I22: DMN7 | J22: 3 | K22: 24.999222 | L22: =AVERAGE(K20:K22) -> 24.97642133 | M22: =STDEV(K20:K22) -> 0.03268720241 | O22: =E22-L22 -> 2.382225333 | P22: =SQRT(F22^2+M22^2) -> 0.04903024095 | R22: =O22-O4 -> -2.738125167 | S22: =2^-R22 -> 6.672027183 | U22: =2^-(R22+P22) -> 6.449086972 | V22: =2^-(R22-P22) -> 6.902674275 | W22: =S22-U22 -> 0.2229402116 | X22: =V22-S22 -> 0.2306470914
A23: Col1a1 | B23: DMN7 | C23: 1 | D23: 28.48165 | H23: GAPDH | I23: DMN7 | J23: 1 | K23: 24.99107
A24: Col1a1 | B24: DMN7 | C24: 2 | D24: 28.731798 | H24: GAPDH | I24: DMN7 | J24: 2 | K24: 24.938972
A25: Col1a1 | B25: DMN7 | C25: 3 | D25: 28.39544 | E25: =AVERAGE(D23:D25) -> 28.536296 | F25: =STDEV(D23:D25) -> 0.1747106609 | H25: GAPDH | I25: DMN7 | J25: 3 | K25: 24.999222 | L25: =AVERAGE(K23:K25) -> 24.97642133 | M25: =STDEV(K23:K25) -> 0.03268720241 | O25: =E25-L25 -> 3.559874667 | P25: =SQRT(F25^2+M25^2) -> 0.1777421397 | R25: =O25-O7 -> -3.475258667 | S25: =2^-R25 -> 11.12133957 | U25: =2^-(R25+P25) -> 9.832215434 | V25: =2^-(R25-P25) -> 12.57948371 | W25: =S25-U25 -> 1.289124137 | X25: =V25-S25 -> 1.458144135
A26: mmu_circ_0001283 | B26: DMN7 | C26: 1 | D26: 32.260033 | H26: GAPDH | I26: DMN7 | J26: 1 | K26: 24.99107
A27: mmu_circ_0001283 | B27: DMN7 | C27: 2 | D27: 32.815895 | H27: GAPDH | I27: DMN7 | J27: 2 | K27: 24.938972
A28: mmu_circ_0001283 | B28: DMN7 | C28: 3 | D28: 33.49757 | E28: =AVERAGE(D26:D28) -> 32.85783267 | F28: =STDEV(D26:D28) -> 0.6198334716 | H28: GAPDH | I28: DMN7 | J28: 3 | K28: 24.999222 | L28: =AVERAGE(K26:K28) -> 24.97642133 | M28: =STDEV(K26:K28) -> 0.03268720241 | O28: =E28-L28 -> 7.881411333 | P28: =SQRT(F28^2+M28^2) -> 0.6206947605 | R28: =O28-O10 -> -3.222411167 | S28: =2^-R28 -> 9.333454605 | U28: =2^-(R28+P28) -> 6.070083685 | V28: =2^-(R28-P28) -> 14.35126423 | W28: =S28-U28 -> 3.26337092 | X28: =V28-S28 -> 5.017809626
A29: α-SMA | B29: DMN8 | C29: 1 | D29: 26.520441 | H29: GAPDH | I29: DMN8 | J29: 1 | K29: 23.1661
A30: α-SMA | B30: DMN8 | C30: 2 | D30: 26.512445 | H30: GAPDH | I30: DMN8 | J30: 2 | K30: 23.100103
A31: α-SMA | B31: DMN8 | C31: 3 | D31: 26.57032 | E31: =AVERAGE(D29:D31) -> 26.534402 | F31: =STDEV(D29:D31) -> 0.03136177685 | H31: GAPDH | I31: DMN8 | J31: 3 | K31: 23.055546 | L31: =AVERAGE(K29:K31) -> 23.10724967 | M31: =STDEV(K29:K31) -> 0.05562241331 | O31: =E31-L31 -> 3.427152333 | P31: =SQRT(F31^2+M31^2) -> 0.06385463107 | R31: =O31-O4 -> -1.693198167 | S31: =2^-R31 -> 3.233727625 | U31: =2^-(R31+P31) -> 3.093721941 | V31: =2^-(R31-P31) -> 3.380069234 | W31: =S31-U31 -> 0.1400056838 | X31: =V31-S31 -> 0.1463416092
A32: Col1a1 | B32: DMN8 | C32: 1 | D32: 29.314133 | H32: GAPDH | I32: DMN8 | J32: 1 | K32: 23.1661
A33: Col1a1 | B33: DMN8 | C33: 2 | D33: 29.06013 | H33: GAPDH | I33: DMN8 | J33: 2 | K33: 23.100103
A34: Col1a1 | B34: DMN8 | C34: 3 | D34: 29.377024 | E34: =AVERAGE(D32:D34) -> 29.250429 | F34: =STDEV(D32:D34) -> 0.1677769398 | H34: GAPDH | I34: DMN8 | J34: 3 | K34: 23.055546 | L34: =AVERAGE(K32:K34) -> 23.10724967 | M34: =STDEV(K32:K34) -> 0.05562241331 | O34: =E34-L34 -> 6.143179333 | P34: =SQRT(F34^2+M34^2) -> 0.1767567662 | R34: =O34-O7 -> -0.891954 | S34: =2^-R34 -> 1.855687784 | U34: =2^-(R34+P34) -> 1.641707644 | V34: =2^-(R34-P34) -> 2.097558091 | W34: =S34-U34 -> 0.2139801403 | X34: =V34-S34 -> 0.2418703073
A35: mmu_circ_0001283 | B35: DMN8 | C35: 1 | D35: 32.899002 | H35: GAPDH | I35: DMN8 | J35: 1 | K35: 23.1661
A36: mmu_circ_0001283 | B36: DMN8 | C36: 2 | D36: 32.73059 | H36: GAPDH | I36: DMN8 | J36: 2 | K36: 23.100103
A37: mmu_circ_0001283 | B37: DMN8 | C37: 3 | D37: 33.324757 | E37: =AVERAGE(D35:D37) -> 32.984783 | F37: =STDEV(D35:D37) -> 0.3062309438 | H37: GAPDH | I37: DMN8 | J37: 3 | K37: 23.055546 | L37: =AVERAGE(K35:K37) -> 23.10724967 | M37: =STDEV(K35:K37) -> 0.05562241331 | O37: =E37-L37 -> 9.877533333 | P37: =SQRT(F37^2+M37^2) -> 0.3112414558 | R37: =O37-O10 -> -1.226289167 | S37: =2^-R37 -> 2.339644228 | U37: =2^-(R37+P37) -> 1.88563143 | V37: =2^-(R37-P37) -> 2.902971931 | W37: =S37-U37 -> 0.454012798 | X37: =V37-S37 -> 0.563327703
A38: α-SMA | B38: DMN9 | C38: 1 | D38: 27.39547 | H38: GAPDH | I38: DMN9 | J38: 1 | K38: 22.210407
A39: α-SMA | B39: DMN9 | C39: 2 | D39: 27.100208 | H39: GAPDH | I39: DMN9 | J39: 2 | K39: 22.370516
A40: α-SMA | B40: DMN9 | C40: 3 | D40: 27.247017 | E40: =AVERAGE(D38:D40) -> 27.247565 | F40: =STDEV(D38:D40) -> 0.1476317628 | H40: GAPDH | I40: DMN9 | J40: 3 | K40: 22.237185 | L40: =AVERAGE(K38:K40) -> 22.27270267 | M40: =STDEV(K38:K40) -> 0.08576043059 | O40: =E40-L40 -> 4.974862333 | P40: =SQRT(F40^2+M40^2) -> 0.1707336781 | R40: =O40-O4 -> -0.1454881667 | S40: =2^-R40 -> 1.106104864 | U40: =2^-(R40+P40) -> 0.9826533607 | V40: =2^-(R40-P40) -> 1.245065676 | W40: =S40-U40 -> 0.1234515035 | X40: =V40-S40 -> 0.1389608116
A41: Col1a1 | B41: DMN9 | C41: 1 | D41: 27.850836 | H41: GAPDH | I41: DMN9 | J41: 1 | K41: 22.210407
A42: Col1a1 | B42: DMN9 | C42: 2 | D42: 27.437368 | H42: GAPDH | I42: DMN9 | J42: 2 | K42: 22.370516
A43: Col1a1 | B43: DMN9 | C43: 3 | D43: 27.832952 | E43: =AVERAGE(D41:D43) -> 27.707052 | F43: =STDEV(D41:D43) -> 0.2337243125 | H43: GAPDH | I43: DMN9 | J43: 3 | K43: 22.237185 | L43: =AVERAGE(K41:K43) -> 22.27270267 | M43: =STDEV(K41:K43) -> 0.08576043059 | O43: =E43-L43 -> 5.434349333 | P43: =SQRT(F43^2+M43^2) -> 0.2489616551 | R43: =O43-O7 -> -1.600784 | S43: =2^-R43 -> 3.033080945 | U43: =2^-(R43+P43) -> 2.55234322 | V43: =2^-(R43-P43) -> 3.60436635 | W43: =S43-U43 -> 0.4807377246 | X43: =V43-S43 -> 0.5712854057
A44: mmu_circ_0001283 | B44: DMN9 | C44: 1 | D44: 33.026592 | H44: GAPDH | I44: DMN9 | J44: 1 | K44: 22.210407
A45: mmu_circ_0001283 | B45: DMN9 | C45: 2 | D45: 34.129776 | H45: GAPDH | I45: DMN9 | J45: 2 | K45: 22.370516
A46: mmu_circ_0001283 | B46: DMN9 | C46: 3 | D46: 33.70505 | E46: =AVERAGE(D44:D46) -> 33.62047267 | F46: =STDEV(D44:D46) -> 0.556433939 | H46: GAPDH | I46: DMN9 | J46: 3 | K46: 22.237185 | L46: =AVERAGE(K44:K46) -> 22.27270267 | M46: =STDEV(K44:K46) -> 0.08576043059 | O46: =E46-L46 -> 11.34777 | P46: =SQRT(F46^2+M46^2) -> 0.5630040674 | R46: =O46-O10 -> 0.2439475 | S46: =2^-R46 -> 0.8444316159 | U46: =2^-(R46+P46) -> 0.5715883561 | V46: =2^-(R46-P46) -> 1.247514485 | W46: =S46-U46 -> 0.2728432598 | X46: =V46-S46 -> 0.4030828695
A47: α-SMA | B47: DMN10 | C47: 1 | D47: 27.489079 | H47: GAPDH | I47: DMN10 | J47: 1 | K47: 22.408276
A48: α-SMA | B48: DMN10 | C48: 2 | D48: 27.516752 | H48: GAPDH | I48: DMN10 | J48: 2 | K48: 22.34323
A49: α-SMA | B49: DMN10 | C49: 3 | D49: 27.692535 | E49: =AVERAGE(D47:D49) -> 27.566122 | F49: =STDEV(D47:D49) -> 0.110347785 | H49: GAPDH | I49: DMN10 | J49: 3 | K49: 22.289701 | L49: =AVERAGE(K47:K49) -> 22.347069 | M49: =STDEV(K47:K49) -> 0.05938064581 | O49: =E49-L49 -> 5.219053 | P49: =SQRT(F49^2+M49^2) -> 0.1253103936 | R49: =O49-O4 -> 0.0987025 | S49: =2^-R49 -> 0.9338725001 | U49: =2^-(R49+P49) -> 0.8561806327 | V49: =2^-(R49-P49) -> 1.018614312 | W49: =S49-U49 -> 0.07769186745 | X49: =V49-S49 -> 0.08474181233
A50: Col1a1 | B50: DMN10 | C50: 1 | D50: 28.30485 | H50: GAPDH | I50: DMN10 | J50: 1 | K50: 22.408276
A51: Col1a1 | B51: DMN10 | C51: 2 | D51: 28.111597 | H51: GAPDH | I51: DMN10 | J51: 2 | K51: 22.34323
A52: Col1a1 | B52: DMN10 | C52: 3 | D52: 27.900616 | E52: =AVERAGE(D50:D52) -> 28.10568767 | F52: =STDEV(D50:D52) -> 0.2021817792 | H52: GAPDH | I52: DMN10 | J52: 3 | K52: 22.289701 | L52: =AVERAGE(K50:K52) -> 22.347069 | M52: =STDEV(K50:K52) -> 0.05938064581 | O52: =E52-L52 -> 5.758618667 | P52: =SQRT(F52^2+M52^2) -> 0.2107214582 | R52: =O52-O7 -> -1.276514667 | S52: =2^-R52 -> 2.422530227 | U52: =2^-(R52+P52) -> 2.093320492 | V52: =2^-(R52-P52) -> 2.80351371 | W52: =S52-U52 -> 0.3292097344 | X52: =V52-S52 -> 0.3809834831
A53: mmu_circ_0001283 | B53: DMN10 | C53: 1 | D53: 32.649258 | H53: GAPDH | I53: DMN10 | J53: 1 | K53: 22.408276
A54: mmu_circ_0001283 | B54: DMN10 | C54: 2 | D54: 34.270298 | H54: GAPDH | I54: DMN10 | J54: 2 | K54: 22.34323
A55: mmu_circ_0001283 | B55: DMN10 | C55: 3 | D55: 32.77636 | E55: =AVERAGE(D53:D55) -> 33.231972 | F55: =STDEV(D53:D55) -> 0.9014595894 | H55: GAPDH | I55: DMN10 | J55: 3 | K55: 22.289701 | L55: =AVERAGE(K53:K55) -> 22.347069 | M55: =STDEV(K53:K55) -> 0.05938064581 | O55: =E55-L55 -> 10.884903 | P55: =SQRT(F55^2+M55^2) -> 0.9034132235 | R55: =O55-O10 -> -0.2189195 | S55: =2^-R55 -> 1.163861591 | U55: =2^-(R55+P55) -> 0.6222241418 | V55: =2^-(R55-P55) -> 2.176986896 | W55: =S55-U55 -> 0.5416374492 | X55: =V55-S55 -> 1.013125305
A56: α-SMA | B56: DMN11 | C56: 1 | D56: 27.193178 | H56: GAPDH | I56: DMN11 | J56: 1 | K56: 23.54645
A57: α-SMA | B57: DMN11 | C57: 2 | D57: 27.253084 | H57: GAPDH | I57: DMN11 | J57: 2 | K57: 23.676455
A58: α-SMA | B58: DMN11 | C58: 3 | D58: 27.38834 | E58: =AVERAGE(D56:D58) -> 27.27820067 | F58: =STDEV(D56:D58) -> 0.09997593095 | H58: GAPDH | I58: DMN11 | J58: 3 | K58: 23.50687 | L58: =AVERAGE(K56:K58) -> 23.57659167 | M58: =STDEV(K56:K58) -> 0.0887195475 | O58: =E58-L58 -> 3.701609 | P58: =SQRT(F58^2+M58^2) -> 0.1336650473 | R58: =O58-O4 -> -1.4187415 | S58: =2^-R58 -> 2.67352191 | U58: =2^-(R58+P58) -> 2.436949665 | V58: =2^-(R58-P58) -> 2.933059926 | W58: =S58-U58 -> 0.236572245 | X58: =V58-S58 -> 0.2595380157
A59: Col1a1 | B59: DMN11 | C59: 1 | D59: 29.512297 | H59: GAPDH | I59: DMN11 | J59: 1 | K59: 23.54645
A60: Col1a1 | B60: DMN11 | C60: 2 | D60: 29.363802 | H60: GAPDH | I60: DMN11 | J60: 2 | K60: 23.676455
A61: Col1a1 | B61: DMN11 | C61: 3 | D61: 29.149622 | E61: =AVERAGE(D59:D61) -> 29.341907 | F61: =STDEV(D59:D61) -> 0.1823261697 | H61: GAPDH | I61: DMN11 | J61: 3 | K61: 23.50687 | L61: =AVERAGE(K59:K61) -> 23.57659167 | M61: =STDEV(K59:K61) -> 0.0887195475 | O61: =E61-L61 -> 5.765315333 | P61: =SQRT(F61^2+M61^2) -> 0.2027658509 | R61: =O61-O7 -> -1.269818 | S61: =2^-R61 -> 2.411311443 | U61: =2^-(R61+P61) -> 2.095147986 | V61: =2^-(R61-P61) -> 2.775184813 | W61: =S61-U61 -> 0.3161634564 | X61: =V61-S61 -> 0.3638733708
A62: mmu_circ_0001283 | B62: DMN11 | C62: 1 | D62: 33.11694 | H62: GAPDH | I62: DMN11 | J62: 1 | K62: 23.54645
A63: mmu_circ_0001283 | B63: DMN11 | C63: 2 | D63: 32.77178 | H63: GAPDH | I63: DMN11 | J63: 2 | K63: 23.676455
A64: mmu_circ_0001283 | B64: DMN11 | C64: 3 | D64: 33.17301 | E64: =AVERAGE(D62:D64) -> 33.02057667 | F64: =STDEV(D62:D64) -> 0.2172804576 | H64: GAPDH | I64: DMN11 | J64: 3 | K64: 23.50687 | L64: =AVERAGE(K62:K64) -> 23.57659167 | M64: =STDEV(K62:K64) -> 0.0887195475 | O64: =E64-L64 -> 9.443985 | P64: =SQRT(F64^2+M64^2) -> 0.2346954523 | R64: =O64-O10 -> -1.6598375 | S64: =2^-R64 -> 3.159809318 | U64: =2^-(R64+P64) -> 2.685409398 | V64: =2^-(R64-P64) -> 3.718015932 | W64: =S64-U64 -> 0.47439992 | X64: =V64-S64 -> 0.5582066142
A65: α-SMA | B65: DMN12 | C65: 1 | D65: 27.335354 | H65: GAPDH | I65: DMN12 | J65: 1 | K65: 23.846085
A66: α-SMA | B66: DMN12 | C66: 2 | D66: 27.378443 | H66: GAPDH | I66: DMN12 | J66: 2 | K66: 23.942047
A67: α-SMA | B67: DMN12 | C67: 3 | D67: 27.607376 | E67: =AVERAGE(D65:D67) -> 27.440391 | F67: =STDEV(D65:D67) -> 0.1462092957 | H67: GAPDH | I67: DMN12 | J67: 3 | K67: 23.927664 | L67: =AVERAGE(K65:K67) -> 23.90526533 | M67: =STDEV(K65:K67) -> 0.05175375892 | O67: =E67-L67 -> 3.535125667 | P67: =SQRT(F67^2+M67^2) -> 0.1550987096 | R67: =O67-O4 -> -1.585224833 | S67: =2^-R67 -> 3.000545555 | U67: =2^-(R67+P67) -> 2.694702721 | V67: =2^-(R67-P67) -> 3.341100879 | W67: =S67-U67 -> 0.3058428343 | X67: =V67-S67 -> 0.3405553236
A68: Col1a1 | B68: DMN12 | C68: 1 | D68: 29.836143 | H68: GAPDH | I68: DMN12 | J68: 1 | K68: 23.846085
A69: Col1a1 | B69: DMN12 | C69: 2 | D69: 29.866476 | H69: GAPDH | I69: DMN12 | J69: 2 | K69: 23.942047
A70: Col1a1 | B70: DMN12 | C70: 3 | D70: 29.346977 | E70: =AVERAGE(D68:D70) -> 29.68319867 | F70: =STDEV(D68:D70) -> 0.2915712256 | H70: GAPDH | I70: DMN12 | J70: 3 | K70: 23.927664 | L70: =AVERAGE(K68:K70) -> 23.90526533 | M70: =STDEV(K68:K70) -> 0.05175375892 | O70: =E70-L70 -> 5.777933333 | P70: =SQRT(F70^2+M70^2) -> 0.2961287408 | R70: =O70-O7 -> -1.2572 | S70: =2^-R70 -> 2.390313755 | U70: =2^-(R70+P70) -> 1.946754902 | V70: =2^-(R70-P70) -> 2.934935383 | W70: =S70-U70 -> 0.4435588524 | X70: =V70-S70 -> 0.5446216289
A71: mmu_circ_0001283 | B71: DMN12 | C71: 1 | D71: 33.458893 | H71: GAPDH | I71: DMN12 | J71: 1 | K71: 23.846085
A72: mmu_circ_0001283 | B72: DMN12 | C72: 2 | D72: 32.856533 | H72: GAPDH | I72: DMN12 | J72: 2 | K72: 23.942047
A73: mmu_circ_0001283 | B73: DMN12 | C73: 3 | D73: 32.258816 | E73: =AVERAGE(D71:D73) -> 32.85808067 | F73: =STDEV(D71:D73) -> 0.6000399969 | H73: GAPDH | I73: DMN12 | J73: 3 | K73: 23.927664 | L73: =AVERAGE(K71:K73) -> 23.90526533 | M73: =STDEV(K71:K73) -> 0.05175375892 | O73: =E73-L73 -> 8.952815333 | P73: =SQRT(F73^2+M73^2) -> 0.6022677557 | R73: =O73-O10 -> -2.151007167 | S73: =2^-R73 -> 4.441377397 | U73: =2^-(R73+P73) -> 2.92561395 | V73: =2^-(R73-P73) -> 6.742459368 | W73: =S73-U73 -> 1.515763447 | X73: =V73-S73 -> 2.30108197
V167: Automatic Ct | X167: Automatic
V168: Automatic Ct | X168: Automatic
V169: Automatic Ct | X169: Automatic
V170: Automatic Ct | X170: Automatic
V171: Automatic Ct | X171: Automatic
V173: Automatic Ct | X173: Automatic
V174: Automatic Ct | X174: Automatic
V175: Automatic Ct | X175: Automatic
V176: Automatic Ct | X176: Automatic
V178: Automatic Ct | X178: Automatic
V179: Automatic Ct | X179: Automatic
V180: Automatic Ct | X180: Automatic
V182: Automatic Ct | X182: Automatic
V183: Automatic Ct | X183: Automatic
V184: Automatic Ct | X184: Automatic
V185: Automatic Ct | X185: Automatic
V186: Automatic Ct | X186: Automatic
V187: Automatic Ct | X187: Automatic

Sheet Cт1
A1: SDS 2.4 | B1: AQ Results | C1: 1
A2: Filename | B2: 20211117
A3: PlateID
A4: Assay Type | B4: Absolute Quantification
A5: Run DateTime | B5: 2021-11-17T15:51:39
A6: Operator
A7: ThermalCycleParams
A9: Sample Information
A11: Well | B11: Sample Name | C11: Detector Name | D11: Reporter | E11: Task | F11: Ct | G11: Tm Value | H11: Tm Type | I11: Quantity | J11: Qty Mean | K11: Qty StdDev | L11: Ct Median | M11: Ct Mean | N11: Ct StdDev | O11: Ct Type | P11: Template Name | Q11: Baseline Type | R11: Baseline Start | S11: Baseline Stop | T11: Threshold Type | U11: Threshold | V11: FOS | W11: HMD | X11: LME | Y11: EW | Z11: BPR | AA11: NAW | AB11: HNS | AC11: HRN | AD11: EAF | AE11: BAF | AF11: TAF | AG11: CAF
A12: 1 | B12: A1 | C12: test | D12: FAM | E12: Unknown | F12: 24.99086 | G12: 86.8 | H12: Auto Tm | O12: Automatic Ct | Q12: Automatic | T12: Automatic | U12: 3.8190293
A13: 10 | B13: A10 | C13: test | D13: FAM | E13: Unknown | F13: 32.506042 | G13: 87.7 | H13: Auto Tm | O13: Automatic Ct | Q13: Automatic | T13: Automatic | U13: 3.8190293
A14: 11 | B14: A11 | C14: test | D14: FAM | E14: Unknown | F14: 31.799007 | G14: 87.5 | H14: Auto Tm | O14: Automatic Ct | Q14: Automatic | T14: Automatic | U14: 3.8190293
A15: 12 | B15: A12 | C15: test | D15: FAM | E15: Unknown | F15: 31.99162 | G15: 87.2 | H15: Auto Tm | O15: Automatic Ct | Q15: Automatic | T15: Automatic | U15: 3.8190293
A16: 2 | B16: A2 | C16: test | D16: FAM | E16: Unknown | F16: 24.47882 | G16: 86.8 | H16: Auto Tm | O16: Automatic Ct | Q16: Automatic | T16: Automatic | U16: 3.8190293
A17: 3 | B17: A3 | C17: test | D17: FAM | E17: Unknown | F17: 24.490103 | G17: 87 | H17: Auto Tm | O17: Automatic Ct | Q17: Automatic | T17: Automatic | U17: 3.8190293
A18: 4 | B18: A4 | C18: test | D18: FAM | E18: Unknown | F18: 27.004333 | G18: 86.8 | H18: Auto Tm | O18: Automatic Ct | Q18: Automatic | T18: Automatic | U18: 3.8190293
A19: 5 | B19: A5 | C19: test | D19: FAM | E19: Unknown | F19: 26.981478 | G19: 87.1 | H19: Auto Tm | O19: Automatic Ct | Q19: Automatic | T19: Automatic | U19: 3.8190293
A20: 6 | B20: A6 | C20: test | D20: FAM | E20: Unknown | F20: 27.380234 | G20: 87.5 | H20: Auto Tm | O20: Automatic Ct | Q20: Automatic | T20: Automatic | U20: 3.8190293
A21: 7 | B21: A7 | C21: test | D21: FAM | E21: Unknown | F21: 30.111769 | G21: 84.4 | H21: Auto Tm | O21: Automatic Ct | Q21: Automatic | T21: Automatic | U21: 3.8190293
A22: 8 | B22: A8 | C22: test | D22: FAM | E22: Unknown | F22: 29.91383 | G22: 84 | H22: Auto Tm | O22: Automatic Ct | Q22: Automatic | T22: Automatic | U22: 3.8190293
A23: 9 | B23: A9 | C23: test | D23: FAM | E23: Unknown | F23: 29.562529 | G23: 83.6 | H23: Auto Tm | O23: Automatic Ct | Q23: Automatic | T23: Automatic | U23: 3.8190293
A24: 13 | B24: B1 | C24: test | D24: FAM | E24: Unknown | F24: 22.501625 | G24: 87 | H24: Auto Tm | O24: Automatic Ct | Q24: Automatic | T24: Automatic | U24: 3.8190293
A25: 22 | B25: B10 | C25: test | D25: FAM | E25: Unknown | F25: 31.967993 | G25: 87.8 | H25: Auto Tm | O25: Automatic Ct | Q25: Automatic | T25: Automatic | U25: 3.8190293
A26: 23 | B26: B11 | C26: test | D26: FAM | E26: Unknown | F26: 32.66122 | G26: 87.6 | H26: Auto Tm | O26: Automatic Ct | Q26: Automatic | T26: Automatic | U26: 3.8190293
A27: 24 | B27: B12 | C27: test | D27: FAM | E27: Unknown | F27: 32.46926 | G27: 87.4 | H27: Auto Tm | O27: Automatic Ct | Q27: Automatic | T27: Automatic | U27: 3.8190293
A28: 14 | B28: B2 | C28: test | D28: FAM | E28: Unknown | F28: 22.419115 | G28: 87.2 | H28: Auto Tm | O28: Automatic Ct | Q28: Automatic | T28: Automatic | U28: 3.8190293
A29: 15 | B29: B3 | C29: test | D29: FAM | E29: Unknown | F29: 22.31525 | G29: 87.5 | H29: Auto Tm | O29: Automatic Ct | Q29: Automatic | T29: Automatic | U29: 3.8190293
A30: 16 | B30: B4 | C30: test | D30: FAM | E30: Unknown | F30: 26.010323 | G30: 87.1 | H30: Auto Tm | O30: Automatic Ct | Q30: Automatic | T30: Automatic | U30: 3.8190293
A31: 17 | B31: B5 | C31: test | D31: FAM | E31: Unknown | F31: 26.093903 | G31: 87.3 | H31: Auto Tm | O31: Automatic Ct | Q31: Automatic | T31: Automatic | U31: 3.8190293
A32: 18 | B32: B6 | C32: test | D32: FAM | E32: Unknown | F32: 26.326717 | G32: 87.7 | H32: Auto Tm | O32: Automatic Ct | Q32: Automatic | T32: Automatic | U32: 3.8190293
A33: 19 | B33: B7 | C33: test | D33: FAM | E33: Unknown | F33: 28.60999 | G33: 84.8 | H33: Auto Tm | O33: Automatic Ct | Q33: Automatic | T33: Automatic | U33: 3.8190293
A34: 20 | B34: B8 | C34: test | D34: FAM | E34: Unknown | F34: 28.743032 | G34: 84.2 | H34: Auto Tm | O34: Automatic Ct | Q34: Automatic | T34: Automatic | U34: 3.8190293
A35: 21 | B35: B9 | C35: test | D35: FAM | E35: Unknown | F35: 28.152206 | G35: 84 | H35: Auto Tm | O35: Automatic Ct | Q35: Automatic | T35: Automatic | U35: 3.8190293
A36: 25 | B36: C1 | C36: test | D36: FAM | E36: Unknown | F36: 21.22058 | G36: 87.2 | H36: Auto Tm | O36: Automatic Ct | Q36: Automatic | T36: Automatic | U36: 3.8190293
A37: 34 | B37: C10 | C37: test | D37: FAM | E37: Unknown | F37: 33.181965 | G37: 88.3 | H37: Auto Tm | O37: Automatic Ct | Q37: Automatic | T37: Automatic | U37: 3.8190293
A38: 35 | B38: C11 | C38: test | D38: FAM | E38: Unknown | F38: 32.58388 | G38: 87.8 | H38: Auto Tm | O38: Automatic Ct | Q38: Automatic | T38: Automatic | U38: 3.8190293
A39: 36 | B39: C12 | C39: test | D39: FAM | E39: Unknown | F39: 32.375546 | G39: 87.6 | H39: Auto Tm | O39: Automatic Ct | Q39: Automatic | T39: Automatic | U39: 3.8190293
A40: 26 | B40: C2 | C40: test | D40: FAM | E40: Unknown | F40: 21.295992 | G40: 87.7 | H40: Auto Tm | O40: Automatic Ct | Q40: Automatic | T40: Automatic | U40: 3.8190293
A41: 27 | B41: C3 | C41: test | D41: FAM | E41: Unknown | F41: 21.453514 | G41: 88.1 | H41: Auto Tm | O41: Automatic Ct | Q41: Automatic | T41: Automatic | U41: 3.8190293
A42: 28 | B42: C4 | C42: test | D42: FAM | E42: Unknown | F42: 26.804567 | G42: 87.7 | H42: Auto Tm | O42: Automatic Ct | Q42: Automatic | T42: Automatic | U42: 3.8190293
A43: 29 | B43: C5 | C43: test | D43: FAM | E43: Unknown | F43: 26.796227 | G43: 87.7 | H43: Auto Tm | O43: Automatic Ct | Q43: Automatic | T43: Automatic | U43: 3.8190293
A44: 30 | B44: C6 | C44: test | D44: FAM | E44: Unknown | F44: 26.875038 | G44: 87.9 | H44: Auto Tm | O44: Automatic Ct | Q44: Automatic | T44: Automatic | U44: 3.8190293
A45: 31 | B45: C7 | C45: test | D45: FAM | E45: Unknown | F45: 27.963875 | G45: 84.8 | H45: Auto Tm | O45: Automatic Ct | Q45: Automatic | T45: Automatic | U45: 3.8190293
A46: 32 | B46: C8 | C46: test | D46: FAM | E46: Unknown | F46: 27.604815 | G46: 84.6 | H46: Auto Tm | O46: Automatic Ct | Q46: Automatic | T46: Automatic | U46: 3.8190293
A47: 33 | B47: C9 | C47: test | D47: FAM | E47: Unknown | F47: 27.317768 | G47: 84.4 | H47: Auto Tm | O47: Automatic Ct | Q47: Automatic | T47: Automatic | U47: 3.8190293
A48: 37 | B48: D1 | C48: test | D48: FAM | E48: Unknown | F48: 21.48063 | G48: 87.4 | H48: Auto Tm | O48: Automatic Ct | Q48: Automatic | T48: Automatic | U48: 3.8190293
A49: 46 | B49: D10 | C49: test | D49: FAM | E49: Unknown | F49: 32.960598 | G49: 88.8 | H49: Auto Tm | O49: Automatic Ct | Q49: Automatic | T49: Automatic | U49: 3.8190293
A50: 47 | B50: D11 | C50: test | D50: FAM | E50: Unknown | F50: 32.70367 | G50: 88.4 | H50: Auto Tm | O50: Automatic Ct | Q50: Automatic | T50: Automatic | U50: 3.8190293
A51: 48 | B51: D12 | C51: test | D51: FAM | E51: Unknown | F51: 32.02279 | G51: 87.8 | H51: Auto Tm | O51: Automatic Ct | Q51: Automatic | T51: Automatic | U51: 3.8190293
A52: 38 | B52: D2 | C52: test | D52: FAM | E52: Unknown | F52: 21.61652 | G52: 88.3 | H52: Auto Tm | O52: Automatic Ct | Q52: Automatic | T52: Automatic | U52: 3.8190293
A53: 39 | B53: D3 | C53: test | D53: FAM | E53: Unknown | F53: 21.595453 | G53: 89.1 | H53: Auto Tm | O53: Automatic Ct | Q53: Automatic | T53: Automatic | U53: 3.8190293
A54: 40 | B54: D4 | C54: test | D54: FAM | E54: Unknown | F54: 27.089327 | G54: 88.7 | H54: Auto Tm | O54: Automatic Ct | Q54: Automatic | T54: Automatic | U54: 3.8190293
A55: 41 | B55: D5 | C55: test | D55: FAM | E55: Unknown | F55: 27.21829 | G55: 88.3 | H55: Auto Tm | O55: Automatic Ct | Q55: Automatic | T55: Automatic | U55: 3.8190293
A56: 42 | B56: D6 | C56: test | D56: FAM | E56: Unknown | F56: 27.06543 | G56: 88.3 | H56: Auto Tm | O56: Automatic Ct | Q56: Automatic | T56: Automatic | U56: 3.8190293
A57: 43 | B57: D7 | C57: test | D57: FAM | E57: Unknown | F57: 27.637545 | G57: 85.2 | H57: Auto Tm | O57: Automatic Ct | Q57: Automatic | T57: Automatic | U57: 3.8190293
A58: 44 | B58: D8 | C58: test | D58: FAM | E58: Unknown | F58: 27.6648 | G58: 84.8 | H58: Auto Tm | O58: Automatic Ct | Q58: Automatic | T58: Automatic | U58: 3.8190293
A59: 45 | B59: D9 | C59: test | D59: FAM | E59: Unknown | F59: 27.403503 | G59: 84.8 | H59: Auto Tm | O59: Automatic Ct | Q59: Automatic | T59: Automatic | U59: 3.8190293
A60: 49 | B60: E1 | C60: test | D60: FAM | E60: Unknown | F60: 24.21825 | G60: 87.4 | H60: Auto Tm | O60: Automatic Ct | Q60: Automatic | T60: Automatic | U60: 3.8190293
A61: 58 | B61: E10 | C61: test | D61: FAM | E61: Unknown | F61: 32.153862 | G61: 88.8 | H61: Auto Tm | O61: Automatic Ct | Q61: Automatic | T61: Automatic | U61: 3.8190293
A62: 59 | B62: E11 | C62: test | D62: FAM | E62: Unknown | F62: 31.52857 | G62: 88.4 | H62: Auto Tm | O62: Automatic Ct | Q62: Automatic | T62: Automatic | U62: 3.8190293
A63: 60 | B63: E12 | C63: test | D63: FAM | E63: Unknown | F63: 32.675686 | G63: 88 | H63: Auto Tm | O63: Automatic Ct | Q63: Automatic | T63: Automatic | U63: 3.8190293
A64: 50 | B64: E2 | C64: test | D64: FAM | E64: Unknown | F64: 24.21609 | G64: 88.3 | H64: Auto Tm | O64: Automatic Ct | Q64: Automatic | T64: Automatic | U64: 3.8190293
A65: 51 | B65: E3 | C65: test | D65: FAM | E65: Unknown | F65: 24.196302 | G65: 88.9 | H65: Auto Tm | O65: Automatic Ct | Q65: Automatic | T65: Automatic | U65: 3.8190293
A66: 52 | B66: E4 | C66: test | D66: FAM | E66: Unknown | F66: 27.495117 | G66: 88.3 | H66: Auto Tm | O66: Automatic Ct | Q66: Automatic | T66: Automatic | U66: 3.8190293
A67: 53 | B67: E5 | C67: test | D67: FAM | E67: Unknown | F67: 27.483805 | G67: 88.3 | H67: Auto Tm | O67: Automatic Ct | Q67: Automatic | T67: Automatic | U67: 3.8190293
A68: 54 | B68: E6 | C68: test | D68: FAM | E68: Unknown | F68: 27.500366 | G68: 88.1 | H68: Auto Tm | O68: Automatic Ct | Q68: Automatic | T68: Automatic | U68: 3.8190293
A69: 55 | B69: E7 | C69: test | D69: FAM | E69: Unknown | F69: 29.602362 | G69: 85.2 | H69: Auto Tm | O69: Automatic Ct | Q69: Automatic | T69: Automatic | U69: 3.8190293
A70: 56 | B70: E8 | C70: test | D70: FAM | E70: Unknown | F70: 29.696022 | G70: 85 | H70: Auto Tm | O70: Automatic Ct | Q70: Automatic | T70: Automatic | U70: 3.8190293
A71: 57 | B71: E9 | C71: test | D71: FAM | E71: Unknown | F71: 29.323929 | G71: 84.8 | H71: Auto Tm | O71: Automatic Ct | Q71: Automatic | T71: Automatic | U71: 3.8190293
A72: 61 | B72: F1 | C72: test | D72: FAM | E72: Unknown | F72: 23.143005 | G72: 87.2 | H72: Auto Tm | O72: Automatic Ct | Q72: Automatic | T72: Automatic | U72: 3.8190293
A73: 70 | B73: F10 | C73: test | D73: FAM | E73: Unknown | F73: 33.705124 | G73: 88.3 | H73: Auto Tm | O73: Automatic Ct | Q73: Automatic | T73: Automatic | U73: 3.8190293
A74: 71 | B74: F11 | C74: test | D74: FAM | E74: Unknown | F74: 32.9746 | G74: 88 | H74: Auto Tm | O74: Automatic Ct | Q74: Automatic | T74: Automatic | U74: 3.8190293
A75: 72 | B75: F12 | C75: test | D75: FAM | E75: Unknown | F75: 31.819897 | G75: 87.6 | H75: Auto Tm | O75: Automatic Ct | Q75: Automatic | T75: Automatic | U75: 3.8190293
A76: 62 | B76: F2 | C76: test | D76: FAM | E76: Unknown | F76: 23.237398 | G76: 87.6 | H76: Auto Tm | O76: Automatic Ct | Q76: Automatic | T76: Automatic | U76: 3.8190293
A77: 63 | B77: F3 | C77: test | D77: FAM | E77: Unknown | F77: 23.144028 | G77: 87.9 | H77: Auto Tm | O77: Automatic Ct | Q77: Automatic | T77: Automatic | U77: 3.8190293
A78: 64 | B78: F4 | C78: test | D78: FAM | E78: Unknown | F78: 26.461262 | G78: 87.5 | H78: Auto Tm | O78: Automatic Ct | Q78: Automatic | T78: Automatic | U78: 3.8190293
A79: 65 | B79: F5 | C79: test | D79: FAM | E79: Unknown | F79: 26.495409 | G79: 87.7 | H79: Auto Tm | O79: Automatic Ct | Q79: Automatic | T79: Automatic | U79: 3.8190293
A80: 66 | B80: F6 | C80: test | D80: FAM | E80: Unknown | F80: 26.508913 | G80: 87.9 | H80: Auto Tm | O80: Automatic Ct | Q80: Automatic | T80: Automatic | U80: 3.8190293
A81: 67 | B81: F7 | C81: test | D81: FAM | E81: Unknown | F81: 29.052309 | G81: 85 | H81: Auto Tm | O81: Automatic Ct | Q81: Automatic | T81: Automatic | U81: 3.8190293
A82: 68 | B82: F8 | C82: test | D82: FAM | E82: Unknown | F82: 29.101728 | G82: 84.6 | H82: Auto Tm | O82: Automatic Ct | Q82: Automatic | T82: Automatic | U82: 3.8190293
A83: 69 | B83: F9 | C83: test | D83: FAM | E83: Unknown | F83: 28.775341 | G83: 84.4 | H83: Auto Tm | O83: Automatic Ct | Q83: Automatic | T83: Automatic | U83: 3.8190293
A84: 73 | B84: G1 | C84: test | D84: FAM | E84: Unknown | F84: 22.733053 | G84: 86.8 | H84: Auto Tm | O84: Automatic Ct | Q84: Automatic | T84: Automatic | U84: 3.8190293
A85: 82 | B85: G10 | C85: test | D85: FAM | E85: Unknown | F85: 33.015587 | G85: 88.3 | H85: Auto Tm | O85: Automatic Ct | Q85: Automatic | T85: Automatic | U85: 3.8190293
A86: 83 | B86: G11 | C86: test | D86: FAM | E86: Unknown | F86: 32.298866 | G86: 88 | H86: Auto Tm | O86: Automatic Ct | Q86: Automatic | T86: Automatic | U86: 3.8190293
A87: 84 | B87: G12 | C87: test | D87: FAM | E87: Unknown | F87: 33.877888 | G87: 87.6 | H87: Auto Tm | O87: Automatic Ct | Q87: Automatic | T87: Automatic | U87: 3.8190293
A88: 74 | B88: G2 | C88: test | D88: FAM | E88: Unknown | F88: 22.525488 | G88: 87.2 | H88: Auto Tm | O88: Automatic Ct | Q88: Automatic | T88: Automatic | U88: 3.8190293
A89: 75 | B89: G3 | C89: test | D89: FAM | E89: Unknown | F89: 22.726229 | G89: 87.4 | H89: Auto Tm | O89: Automatic Ct | Q89: Automatic | T89: Automatic | U89: 3.8190293
A90: 76 | B90: G4 | C90: test | D90: FAM | E90: Unknown | F90: 27.483805 | G90: 87 | H90: Auto Tm | O90: Automatic Ct | Q90: Automatic | T90: Automatic | U90: 3.8190293
A91: 77 | B91: G5 | C91: test | D91: FAM | E91: Unknown | F91: 27.397999 | G91: 87.1 | H91: Auto Tm | O91: Automatic Ct | Q91: Automatic | T91: Automatic | U91: 3.8190293
A92: 78 | B92: G6 | C92: test | D92: FAM | E92: Unknown | F92: 27.623587 | G92: 87.3 | H92: Auto Tm | O92: Automatic Ct | Q92: Automatic | T92: Automatic | U92: 3.8190293
A93: 79 | B93: G7 | C93: test | D93: FAM | E93: Unknown | F93: 28.574984 | G93: 84.4 | H93: Auto Tm | O93: Automatic Ct | Q93: Automatic | T93: Automatic | U93: 3.8190293
A94: 80 | B94: G8 | C94: test | D94: FAM | E94: Unknown | F94: 28.394283 | G94: 84.4 | H94: Auto Tm | O94: Automatic Ct | Q94: Automatic | T94: Automatic | U94: 3.8190293
A95: 81 | B95: G9 | C95: test | D95: FAM | E95: Unknown | F95: 28.613453 | G95: 84 | H95: Auto Tm | O95: Automatic Ct | Q95: Automatic | T95: Automatic | U95: 3.8190293
A96: 85 | B96: H1 | C96: test | D96: FAM | E96: Unknown | F96: 21.652115 | G96: 86.6 | H96: Auto Tm | O96: Automatic Ct | Q96: Automatic | T96: Automatic | U96: 3.8190293
A97: 94 | B97: H10 | C97: test | D97: FAM | E97: Unknown | F97: 33.993618 | G97: 88 | H97: Auto Tm | O97: Automatic Ct | Q97: Automatic | T97: Automatic | U97: 3.8190293
A98: 95 | B98: H11 | C98: test | D98: FAM | E98: Unknown | F98: 35.11481 | G98: 87.8 | H98: Auto Tm | O98: Automatic Ct | Q98: Automatic | T98: Automatic | U98: 3.8190293
A99: 96 | B99: H12 | C99: test | D99: FAM | E99: Unknown | F99: 33.62687 | G99: 87.8 | H99: Auto Tm | O99: Automatic Ct | Q99: Automatic | T99: Automatic | U99: 3.8190293
A100: 86 | B100: H2 | C100: test | D100: FAM | E100: Unknown | F100: 21.382404 | G100: 86.8 | H100: Auto Tm | O100: Automatic Ct | Q100: Automatic | T100: Automatic | U100: 3.8190293
A101: 87 | B101: H3 | C101: test | D101: FAM | E101: Unknown | F101: 21.299013 | G101: 87 | H101: Auto Tm | O101: Automatic Ct | Q101: Automatic | T101: Automatic | U101: 3.8190293
A102: 88 | B102: H4 | C102: test | D102: FAM | E102: Unknown | F102: 26.662832 | G102: 86.6 | H102: Auto Tm | O102: Automatic Ct | Q102: Automatic | T102: Automatic | U102: 3.8190293
A103: 89 | B103: H5 | C103: test | D103: FAM | E103: Unknown | F103: 26.685255 | G103: 86.8 | H103: Auto Tm | O103: Automatic Ct | Q103: Automatic | T103: Automatic | U103: 3.8190293
A104: 90 | B104: H6 | C104: test | D104: FAM | E104: Unknown | F104: 26.936642 | G104: 86.9 | H104: Auto Tm | O104: Automatic Ct | Q104: Automatic | T104: Automatic | U104: 3.8190293
A105: 91 | B105: H7 | C105: test | D105: FAM | E105: Unknown | F105: 29.153925 | G105: 84.2 | H105: Auto Tm | O105: Automatic Ct | Q105: Automatic | T105: Automatic | U105: 3.8190293
A106: 92 | B106: H8 | C106: test | D106: FAM | E106: Unknown | F106: 29.15445 | G106: 84 | H106: Auto Tm | O106: Automatic Ct | Q106: Automatic | T106: Automatic | U106: 3.8190293
A107: 93 | B107: H9 | C107: test | D107: FAM | E107: Unknown | F107: 29.036955 | G107: 83.8 | H107: Auto Tm | O107: Automatic Ct | Q107: Automatic | T107: Automatic | U107: 3.8190293
A108: Slope | C108: cycles/log decade
A109: Y-Intercept
A110: R^2
A114: NAP | B114: LPL

Sheet Cт2
A1: SDS 2.4 | B1: AQ Results | C1: 1
A2: Filename | B2: 2021-12-1-2
A3: PlateID
A4: Assay Type | B4: Absolute Quantification
A5: Run DateTime | B5: 2021-12-01T02:30:45
A6: Operator
A7: ThermalCycleParams
A9: Sample Information
A11: Well | B11: Sample Name | C11: Detector Name | D11: Reporter | E11: Task | F11: Ct | G11: Tm Value | H11: Tm Type | I11: Quantity | J11: Qty Mean | K11: Qty StdDev | L11: Ct Median | M11: Ct Mean | N11: Ct StdDev | O11: Ct Type | P11: Template Name | Q11: Baseline Type | R11: Baseline Start | S11: Baseline Stop | T11: Threshold Type | U11: Threshold | V11: FOS | W11: HMD | X11: LME | Y11: EW | Z11: BPR | AA11: NAW | AB11: HNS | AC11: HRN | AD11: EAF | AE11: BAF | AF11: TAF | AG11: CAF
A12: 1 | B12: A1 | C12: test | D12: FAM | E12: Unknown | F12: 24.99107 | G12: 86.3 | H12: Auto Tm | O12: Automatic Ct | Q12: Automatic | T12: Automatic | U12: 3.9551394
A13: 10 | B13: A10 | C13: test | D13: FAM | E13: Unknown | F13: 32.260033 | G13: 87.2 | H13: Auto Tm | O13: Automatic Ct | Q13: Automatic | T13: Automatic | U13: 3.9551394
A14: 11 | B14: A11 | C14: test | D14: FAM | E14: Unknown | F14: 32.815895 | G14: 87 | H14: Auto Tm | O14: Automatic Ct | Q14: Automatic | T14: Automatic | U14: 3.9551394
A15: 12 | B15: A12 | C15: test | D15: FAM | E15: Unknown | F15: 33.49757 | G15: 87 | H15: Auto Tm | O15: Automatic Ct | Q15: Automatic | T15: Automatic | U15: 3.9551394
A16: 2 | B16: A2 | C16: test | D16: FAM | E16: Unknown | F16: 24.938972 | G16: 86.5 | H16: Auto Tm | O16: Automatic Ct | Q16: Automatic | T16: Automatic | U16: 3.9551394
A17: 3 | B17: A3 | C17: test | D17: FAM | E17: Unknown | F17: 24.999222 | G17: 86.5 | H17: Auto Tm | O17: Automatic Ct | Q17: Automatic | T17: Automatic | U17: 3.9551394
A18: 4 | B18: A4 | C18: test | D18: FAM | E18: Unknown | F18: 27.394548 | G18: 86.1 | H18: Auto Tm | O18: Automatic Ct | Q18: Automatic | T18: Automatic | U18: 3.9551394
A19: 5 | B19: A5 | C19: test | D19: FAM | E19: Unknown | F19: 27.321491 | G19: 86.3 | H19: Auto Tm | O19: Automatic Ct | Q19: Automatic | T19: Automatic | U19: 3.9551394
A20: 6 | B20: A6 | C20: test | D20: FAM | E20: Unknown | F20: 27.359901 | G20: 86.4 | H20: Auto Tm | O20: Automatic Ct | Q20: Automatic | T20: Automatic | U20: 3.9551394
A21: 7 | B21: A7 | C21: test | D21: FAM | E21: Unknown | F21: 28.48165 | G21: 83.6 | H21: Auto Tm | O21: Automatic Ct | Q21: Automatic | T21: Automatic | U21: 3.9551394
A22: 8 | B22: A8 | C22: test | D22: FAM | E22: Unknown | F22: 28.731798 | G22: 83.4 | H22: Auto Tm | O22: Automatic Ct | Q22: Automatic | T22: Automatic | U22: 3.9551394
A23: 9 | B23: A9 | C23: test | D23: FAM | E23: Unknown | F23: 28.39544 | G23: 83.2 | H23: Auto Tm | O23: Automatic Ct | Q23: Automatic | T23: Automatic | U23: 3.9551394
A24: 13 | B24: B1 | C24: test | D24: FAM | E24: Unknown | F24: 23.1661 | G24: 86.5 | H24: Auto Tm | O24: Automatic Ct | Q24: Automatic | T24: Automatic | U24: 3.9551394
A25: 22 | B25: B10 | C25: test | D25: FAM | E25: Unknown | F25: 32.899002 | G25: 87.4 | H25: Auto Tm | O25: Automatic Ct | Q25: Automatic | T25: Automatic | U25: 3.9551394
A26: 23 | B26: B11 | C26: test | D26: FAM | E26: Unknown | F26: 32.73059 | G26: 87.2 | H26: Auto Tm | O26: Automatic Ct | Q26: Automatic | T26: Automatic | U26: 3.9551394
A27: 24 | B27: B12 | C27: test | D27: FAM | E27: Unknown | F27: 33.324757 | G27: 87 | H27: Auto Tm | O27: Automatic Ct | Q27: Automatic | T27: Automatic | U27: 3.9551394
A28: 14 | B28: B2 | C28: test | D28: FAM | E28: Unknown | F28: 23.100103 | G28: 86.7 | H28: Auto Tm | O28: Automatic Ct | Q28: Automatic | T28: Automatic | U28: 3.9551394
A29: 15 | B29: B3 | C29: test | D29: FAM | E29: Unknown | F29: 23.055546 | G29: 86.7 | H29: Auto Tm | O29: Automatic Ct | Q29: Automatic | T29: Automatic | U29: 3.9551394
A30: 16 | B30: B4 | C30: test | D30: FAM | E30: Unknown | F30: 26.520441 | G30: 86.5 | H30: Auto Tm | O30: Automatic Ct | Q30: Automatic | T30: Automatic | U30: 3.9551394
A31: 17 | B31: B5 | C31: test | D31: FAM | E31: Unknown | F31: 26.512445 | G31: 86.7 | H31: Auto Tm | O31: Automatic Ct | Q31: Automatic | T31: Automatic | U31: 3.9551394
A32: 18 | B32: B6 | C32: test | D32: FAM | E32: Unknown | F32: 26.57032 | G32: 86.8 | H32: Auto Tm | O32: Automatic Ct | Q32: Automatic | T32: Automatic | U32: 3.9551394
A33: 19 | B33: B7 | C33: test | D33: FAM | E33: Unknown | F33: 29.314133 | G33: 84 | H33: Auto Tm | O33: Automatic Ct | Q33: Automatic | T33: Automatic | U33: 3.9551394
A34: 20 | B34: B8 | C34: test | D34: FAM | E34: Unknown | F34: 29.06013 | G34: 83.8 | H34: Auto Tm | O34: Automatic Ct | Q34: Automatic | T34: Automatic | U34: 3.9551394
A35: 21 | B35: B9 | C35: test | D35: FAM | E35: Unknown | F35: 29.377024 | G35: 83.6 | H35: Auto Tm | O35: Automatic Ct | Q35: Automatic | T35: Automatic | U35: 3.9551394
A36: 25 | B36: C1 | C36: test | D36: FAM | E36: Unknown | F36: 22.210407 | G36: 86.7 | H36: Auto Tm | O36: Automatic Ct | Q36: Automatic | T36: Automatic | U36: 3.9551394
A37: 34 | B37: C10 | C37: test | D37: FAM | E37: Unknown | F37: 33.026592 | G37: 87.7 | H37: Auto Tm | O37: Automatic Ct | Q37: Automatic | T37: Automatic | U37: 3.9551394
A38: 35 | B38: C11 | C38: test | D38: FAM | E38: Unknown | F38: 34.129776 | G38: 87.3 | H38: Auto Tm | O38: Automatic Ct | Q38: Automatic | T38: Automatic | U38: 3.9551394
A39: 36 | B39: C12 | C39: test | D39: FAM | E39: Unknown | F39: 33.70505 | G39: 87.1 | H39: Auto Tm | O39: Automatic Ct | Q39: Automatic | T39: Automatic | U39: 3.9551394
A40: 26 | B40: C2 | C40: test | D40: FAM | E40: Unknown | F40: 22.370516 | G40: 86.9 | H40: Auto Tm | O40: Automatic Ct | Q40: Automatic | T40: Automatic | U40: 3.9551394
A41: 27 | B41: C3 | C41: test | D41: FAM | E41: Unknown | F41: 22.237185 | G41: 87.1 | H41: Auto Tm | O41: Automatic Ct | Q41: Automatic | T41: Automatic | U41: 3.9551394
A42: 28 | B42: C4 | C42: test | D42: FAM | E42: Unknown | F42: 27.39547 | G42: 86.9 | H42: Auto Tm | O42: Automatic Ct | Q42: Automatic | T42: Automatic | U42: 3.9551394
A43: 29 | B43: C5 | C43: test | D43: FAM | E43: Unknown | F43: 27.100208 | G43: 87 | H43: Auto Tm | O43: Automatic Ct | Q43: Automatic | T43: Automatic | U43: 3.9551394
A44: 30 | B44: C6 | C44: test | D44: FAM | E44: Unknown | F44: 27.247017 | G44: 87.2 | H44: Auto Tm | O44: Automatic Ct | Q44: Automatic | T44: Automatic | U44: 3.9551394
A45: 31 | B45: C7 | C45: test | D45: FAM | E45: Unknown | F45: 27.850836 | G45: 84.3 | H45: Auto Tm | O45: Automatic Ct | Q45: Automatic | T45: Automatic | U45: 3.9551394
A46: 32 | B46: C8 | C46: test | D46: FAM | E46: Unknown | F46: 27.437368 | G46: 84.1 | H46: Auto Tm | O46: Automatic Ct | Q46: Automatic | T46: Automatic | U46: 3.9551394
A47: 33 | B47: C9 | C47: test | D47: FAM | E47: Unknown | F47: 27.832952 | G47: 83.7 | H47: Auto Tm | O47: Automatic Ct | Q47: Automatic | T47: Automatic | U47: 3.9551394
A48: 37 | B48: D1 | C48: test | D48: FAM | E48: Unknown | F48: 22.408276 | G48: 86.7 | H48: Auto Tm | O48: Automatic Ct | Q48: Automatic | T48: Automatic | U48: 3.9551394
A49: 46 | B49: D10 | C49: test | D49: FAM | E49: Unknown | F49: 32.649258 | G49: 88.1 | H49: Auto Tm | O49: Automatic Ct | Q49: Automatic | T49: Automatic | U49: 3.9551394
A50: 47 | B50: D11 | C50: test | D50: FAM | E50: Unknown | F50: 34.270298 | G50: 87.7 | H50: Auto Tm | O50: Automatic Ct | Q50: Automatic | T50: Automatic | U50: 3.9551394
A51: 48 | B51: D12 | C51: test | D51: FAM | E51: Unknown | F51: 32.77636 | G51: 87.5 | H51: Auto Tm | O51: Automatic Ct | Q51: Automatic | T51: Automatic | U51: 3.9551394
A52: 38 | B52: D2 | C52: test | D52: FAM | E52: Unknown | F52: 22.34323 | G52: 87.1 | H52: Auto Tm | O52: Automatic Ct | Q52: Automatic | T52: Automatic | U52: 3.9551394
A53: 39 | B53: D3 | C53: test | D53: FAM | E53: Unknown | F53: 22.289701 | G53: 87.4 | H53: Auto Tm | O53: Automatic Ct | Q53: Automatic | T53: Automatic | U53: 3.9551394
A54: 40 | B54: D4 | C54: test | D54: FAM | E54: Unknown | F54: 27.489079 | G54: 87.4 | H54: Auto Tm | O54: Automatic Ct | Q54: Automatic | T54: Automatic | U54: 3.9551394
A55: 41 | B55: D5 | C55: test | D55: FAM | E55: Unknown | F55: 27.516752 | G55: 87.6 | H55: Auto Tm | O55: Automatic Ct | Q55: Automatic | T55: Automatic | U55: 3.9551394
A56: 42 | B56: D6 | C56: test | D56: FAM | E56: Unknown | F56: 27.692535 | G56: 87.8 | H56: Auto Tm | O56: Automatic Ct | Q56: Automatic | T56: Automatic | U56: 3.9551394
A57: 43 | B57: D7 | C57: test | D57: FAM | E57: Unknown | F57: 28.30485 | G57: 84.9 | H57: Auto Tm | O57: Automatic Ct | Q57: Automatic | T57: Automatic | U57: 3.9551394
A58: 44 | B58: D8 | C58: test | D58: FAM | E58: Unknown | F58: 28.111597 | G58: 84.7 | H58: Auto Tm | O58: Automatic Ct | Q58: Automatic | T58: Automatic | U58: 3.9551394
A59: 45 | B59: D9 | C59: test | D59: FAM | E59: Unknown | F59: 27.900616 | G59: 84.3 | H59: Auto Tm | O59: Automatic Ct | Q59: Automatic | T59: Automatic | U59: 3.9551394
A60: 49 | B60: E1 | C60: test | D60: FAM | E60: Unknown | F60: 23.54645 | G60: 86.9 | H60: Auto Tm | O60: Automatic Ct | Q60: Automatic | T60: Automatic | U60: 3.9551394
A61: 58 | B61: E10 | C61: test | D61: FAM | E61: Unknown | F61: 33.11694 | G61: 88.3 | H61: Auto Tm | O61: Automatic Ct | Q61: Automatic | T61: Automatic | U61: 3.9551394
A62: 59 | B62: E11 | C62: test | D62: FAM | E62: Unknown | F62: 32.77178 | G62: 87.9 | H62: Auto Tm | O62: Automatic Ct | Q62: Automatic | T62: Automatic | U62: 3.9551394
A63: 60 | B63: E12 | C63: test | D63: FAM | E63: Unknown | F63: 33.17301 | G63: 87.7 | H63: Auto Tm | O63: Automatic Ct | Q63: Automatic | T63: Automatic | U63: 3.9551394
A64: 50 | B64: E2 | C64: test | D64: FAM | E64: Unknown | F64: 23.676455 | G64: 87.3 | H64: Auto Tm | O64: Automatic Ct | Q64: Automatic | T64: Automatic | U64: 3.9551394
A65: 51 | B65: E3 | C65: test | D65: FAM | E65: Unknown | F65: 23.50687 | G65: 87.6 | H65: Auto Tm | O65: Automatic Ct | Q65: Automatic | T65: Automatic | U65: 3.9551394
A66: 52 | B66: E4 | C66: test | D66: FAM | E66: Unknown | F66: 27.193178 | G66: 87.4 | H66: Auto Tm | O66: Automatic Ct | Q66: Automatic | T66: Automatic | U66: 3.9551394
A67: 53 | B67: E5 | C67: test | D67: FAM | E67: Unknown | F67: 27.253084 | G67: 87.8 | H67: Auto Tm | O67: Automatic Ct | Q67: Automatic | T67: Automatic | U67: 3.9551394
A68: 54 | B68: E6 | C68: test | D68: FAM | E68: Unknown | F68: 27.38834 | G68: 88 | H68: Auto Tm | O68: Automatic Ct | Q68: Automatic | T68: Automatic | U68: 3.9551394
A69: 55 | B69: E7 | C69: test | D69: FAM | E69: Unknown | F69: 29.512297 | G69: 85.1 | H69: Auto Tm | O69: Automatic Ct | Q69: Automatic | T69: Automatic | U69: 3.9551394
A70: 56 | B70: E8 | C70: test | D70: FAM | E70: Unknown | F70: 29.363802 | G70: 84.9 | H70: Auto Tm | O70: Automatic Ct | Q70: Automatic | T70: Automatic | U70: 3.9551394
A71: 57 | B71: E9 | C71: test | D71: FAM | E71: Unknown | F71: 29.149622 | G71: 84.5 | H71: Auto Tm | O71: Automatic Ct | Q71: Automatic | T71: Automatic | U71: 3.9551394
A72: 61 | B72: F1 | C72: test | D72: FAM | E72: Unknown | F72: 23.846085 | G72: 86.9 | H72: Auto Tm | O72: Automatic Ct | Q72: Automatic | T72: Automatic | U72: 3.9551394
A73: 70 | B73: F10 | C73: test | D73: FAM | E73: Unknown | F73: 33.458893 | G73: 88.1 | H73: Auto Tm | O73: Automatic Ct | Q73: Automatic | T73: Automatic | U73: 3.9551394
A74: 71 | B74: F11 | C74: test | D74: FAM | E74: Unknown | F74: 32.856533 | G74: 87.7 | H74: Auto Tm | O74: Automatic Ct | Q74: Automatic | T74: Automatic | U74: 3.9551394
A75: 72 | B75: F12 | C75: test | D75: FAM | E75: Unknown | F75: 32.258816 | G75: 87.7 | H75: Auto Tm | O75: Automatic Ct | Q75: Automatic | T75: Automatic | U75: 3.9551394
A76: 62 | B76: F2 | C76: test | D76: FAM | E76: Unknown | F76: 23.942047 | G76: 87.1 | H76: Auto Tm | O76: Automatic Ct | Q76: Automatic | T76: Automatic | U76: 3.9551394
A77: 63 | B77: F3 | C77: test | D77: FAM | E77: Unknown | F77: 23.927664 | G77: 87.4 | H77: Auto Tm | O77: Automatic Ct | Q77: Automatic | T77: Automatic | U77: 3.9551394
A78: 64 | B78: F4 | C78: test | D78: FAM | E78: Unknown | F78: 27.335354 | G78: 87.2 | H78: Auto Tm | O78: Automatic Ct | Q78: Automatic | T78: Automatic | U78: 3.9551394
A79: 65 | B79: F5 | C79: test | D79: FAM | E79: Unknown | F79: 27.378443 | G79: 87.6 | H79: Auto Tm | O79: Automatic Ct | Q79: Automatic | T79: Automatic | U79: 3.9551394
A80: 66 | B80: F6 | C80: test | D80: FAM | E80: Unknown | F80: 27.607376 | G80: 87.8 | H80: Auto Tm | O80: Automatic Ct | Q80: Automatic | T80: Automatic | U80: 3.9551394
A81: 67 | B81: F7 | C81: test | D81: FAM | E81: Unknown | F81: 29.836143 | G81: 84.9 | H81: Auto Tm | O81: Automatic Ct | Q81: Automatic | T81: Automatic | U81: 3.9551394
A82: 68 | B82: F8 | C82: test | D82: FAM | E82: Unknown | F82: 29.866476 | G82: 84.7 | H82: Auto Tm | O82: Automatic Ct | Q82: Automatic | T82: Automatic | U82: 3.9551394
A83: 69 | B83: F9 | C83: test | D83: FAM | E83: Unknown | F83: 29.346977 | G83: 84.3 | H83: Auto Tm | O83: Automatic Ct | Q83: Automatic | T83: Automatic | U83: 3.9551394
A84: 73 | B84: G1 | C84: test | D84: FAM | E84: Unknown | F84: 22.371342 | G84: 86.9 | H84: Auto Tm | O84: Automatic Ct | Q84: Automatic | T84: Automatic | U84: 3.9551394
A85: 82 | B85: G10 | C85: test | D85: FAM | E85: Unknown | F85: 33.293545 | G85: 88.1 | H85: Auto Tm | O85: Automatic Ct | Q85: Automatic | T85: Automatic | U85: 3.9551394
A86: 83 | B86: G11 | C86: test | D86: FAM | E86: Unknown | F86: 32.948635 | G86: 87.9 | H86: Auto Tm | O86: Automatic Ct | Q86: Automatic | T86: Automatic | U86: 3.9551394
A87: 84 | B87: G12 | C87: test | D87: FAM | E87: Unknown | F87: 33.3487 | G87: 87.7 | H87: Auto Tm | O87: Automatic Ct | Q87: Automatic | T87: Automatic | U87: 3.9551394
A88: 74 | B88: G2 | C88: test | D88: FAM | E88: Unknown | F88: 22.21146 | G88: 87.1 | H88: Auto Tm | O88: Automatic Ct | Q88: Automatic | T88: Automatic | U88: 3.9551394
A89: 75 | B89: G3 | C89: test | D89: FAM | E89: Unknown | F89: 22.186947 | G89: 87.2 | H89: Auto Tm | O89: Automatic Ct | Q89: Automatic | T89: Automatic | U89: 3.9551394
A90: 76 | B90: G4 | C90: test | D90: FAM | E90: Unknown | F90: 27.241953 | G90: 87 | H90: Auto Tm | O90: Automatic Ct | Q90: Automatic | T90: Automatic | U90: 3.9551394
A91: 77 | B91: G5 | C91: test | D91: FAM | E91: Unknown | F91: 27.273804 | G91: 87.4 | H91: Auto Tm | O91: Automatic Ct | Q91: Automatic | T91: Automatic | U91: 3.9551394
A92: 78 | B92: G6 | C92: test | D92: FAM | E92: Unknown | F92: 27.477707 | G92: 87.6 | H92: Auto Tm | O92: Automatic Ct | Q92: Automatic | T92: Automatic | U92: 3.9551394
A93: 79 | B93: G7 | C93: test | D93: FAM | E93: Unknown | F93: 29.366478 | G93: 84.7 | H93: Auto Tm | O93: Automatic Ct | Q93: Automatic | T93: Automatic | U93: 3.9551394
A94: 80 | B94: G8 | C94: test | D94: FAM | E94: Unknown | F94: 29.18185 | G94: 84.5 | H94: Auto Tm | O94: Automatic Ct | Q94: Automatic | T94: Automatic | U94: 3.9551394
A95: 81 | B95: G9 | C95: test | D95: FAM | E95: Unknown | F95: 28.994858 | G95: 84.1 | H95: Auto Tm | O95: Automatic Ct | Q95: Automatic | T95: Automatic | U95: 3.9551394
A96: 85 | B96: H1 | C96: test | D96: FAM | E96: Unknown | F96: 21.873348 | G96: 87.1 | H96: Auto Tm | O96: Automatic Ct | Q96: Automatic | T96: Automatic | U96: 3.9551394
A97: 94 | B97: H10 | C97: test | D97: FAM | E97: Unknown | F97: 32.455013 | G97: 88.1 | H97: Auto Tm | O97: Automatic Ct | Q97: Automatic | T97: Automatic | U97: 3.9551394
A98: 95 | B98: H11 | C98: test | D98: FAM | E98: Unknown | F98: 33.483532 | G98: 88.1 | H98: Auto Tm | O98: Automatic Ct | Q98: Automatic | T98: Automatic | U98: 3.9551394
A99: 96 | B99: H12 | C99: test | D99: FAM | E99: Unknown | F99: 33.304848 | G99: 87.7 | H99: Auto Tm | O99: Automatic Ct | Q99: Automatic | T99: Automatic | U99: 3.9551394
A100: 86 | B100: H2 | C100: test | D100: FAM | E100: Unknown | F100: 21.779142 | G100: 87.1 | H100: Auto Tm | O100: Automatic Ct | Q100: Automatic | T100: Automatic | U100: 3.9551394
A101: 87 | B101: H3 | C101: test | D101: FAM | E101: Unknown | F101: 21.789099 | G101: 87.2 | H101: Auto Tm | O101: Automatic Ct | Q101: Automatic | T101: Automatic | U101: 3.9551394
A102: 88 | B102: H4 | C102: test | D102: FAM | E102: Unknown | F102: 26.925339 | G102: 86.9 | H102: Auto Tm | O102: Automatic Ct | Q102: Automatic | T102: Automatic | U102: 3.9551394
A103: 89 | B103: H5 | C103: test | D103: FAM | E103: Unknown | F103: 26.98912 | G103: 87 | H103: Auto Tm | O103: Automatic Ct | Q103: Automatic | T103: Automatic | U103: 3.9551394
A104: 90 | B104: H6 | C104: test | D104: FAM | E104: Unknown | F104: 27.025518 | G104: 87.4 | H104: Auto Tm | O104: Automatic Ct | Q104: Automatic | T104: Automatic | U104: 3.9551394
A105: 91 | B105: H7 | C105: test | D105: FAM | E105: Unknown | F105: 29.123499 | G105: 84.5 | H105: Auto Tm | O105: Automatic Ct | Q105: Automatic | T105: Automatic | U105: 3.9551394
A106: 92 | B106: H8 | C106: test | D106: FAM | E106: Unknown | F106: 28.880827 | G106: 84.3 | H106: Auto Tm | O106: Automatic Ct | Q106: Automatic | T106: Automatic | U106: 3.9551394
A107: 93 | B107: H9 | C107: test | D107: FAM | E107: Unknown | F107: 28.874626 | G107: 84.1 | H107: Auto Tm | O107: Automatic Ct | Q107: Automatic | T107: Automatic | U107: 3.9551394
A108: Slope | C108: cycles/log decade
A109: Y-Intercept
A110: R^2
A114: NAP | B114: LPL
